{"text_format":"1","workbook":"xlsx","n_sheets":5,"sheets":["ご注文シート","受注一覧","商品一覧","のし・包装紙","配送料・支払方法"],"not_rendered":{"charts":0,"images":0,"macros":1,"external_links":0,"defined_names":4,"comments":1,"pivot_tables":0},"unopened":[],"bounds":{"document_bytes":16777216,"sheet_cells":100000,"rows_first":2000,"rows_last":500,"rows_between":2000,"halvings":0,"cell_chars":16384,"cell_head_chars":4096},"cells_cut":0,"cells_raw":0,"read":"whole","date_system":"1900"}

{"sheet":"ご注文シート","index":0,"n_rows":81,"n_cols":60,"rows_kept":81,"cut":false,"hidden":false,"merged":[[80,1,80,5],[80,6,80,17],[80,18,80,22],[80,23,80,34],[80,35,80,39],[80,40,80,51],[78,33,78,38],[78,40,78,49],[78,50,78,51],[78,52,78,54],[78,55,78,58],[78,59,78,61],[77,40,77,49],[77,50,77,51],[77,52,77,54],[77,55,77,58],[77,59,77,61],[78,1,78,8],[78,9,78,12],[78,13,78,16],[78,18,78,27],[78,28,78,32],[77,1,77,8],[77,9,77,12],[77,13,77,16],[77,18,77,27],[77,28,77,32],[77,33,77,38],[76,33,76,38],[76,40,76,49],[76,50,76,51],[76,52,76,54],[76,55,76,58],[76,59,76,61],[75,40,75,49],[75,50,75,51],[75,52,75,54],[75,55,75,58],[75,59,75,61],[75,33,75,38],[76,1,76,8],[76,9,76,12],[76,13,76,16],[76,18,76,27],[76,28,76,32],[75,1,75,8],[75,9,75,12],[75,13,75,16],[75,18,75,27],[75,28,75,32],[74,33,74,38],[74,40,74,49],[74,50,74,51],[74,52,74,54],[74,55,74,58],[74,59,74,61],[73,40,73,49],[73,50,73,51],[73,52,73,54],[73,55,73,58],[73,59,73,61],[73,33,73,38],[74,1,74,8],[74,9,74,12],[74,13,74,16],[74,18,74,27],[74,28,74,32],[73,1,73,8],[73,9,73,12],[73,13,73,16],[73,18,73,27],[73,28,73,32],[72,33,72,38],[72,40,72,49],[72,50,72,51],[72,52,72,54],[72,55,72,58],[72,59,72,61],[71,40,71,49],[71,50,71,51],[71,52,71,54],[71,55,71,58],[71,59,71,61],[71,33,71,38],[72,1,72,8],[72,9,72,12],[72,13,72,16],[72,18,72,27],[72,28,72,32],[71,1,71,8],[71,9,71,12],[71,13,71,16],[71,18,71,27],[71,28,71,32],[70,33,70,38],[70,40,70,49],[70,50,70,51],[70,52,70,54],[70,55,70,58],[70,59,70,61],[69,40,69,49],[69,50,69,51],[69,52,69,54],[69,55,69,58],[69,59,69,61],[69,33,69,38],[70,1,70,8],[70,9,70,12],[70,13,70,16],[70,18,70,27],[70,28,70,32],[69,1,69,8],[69,9,69,12],[69,13,69,16],[69,18,69,27],[69,28,69,32],[68,33,68,38],[68,40,68,49],[68,50,68,51],[68,52,68,54],[68,55,68,58],[68,59,68,61],[67,40,67,49],[67,50,67,51],[67,52,67,54],[67,55,67,58],[67,59,67,61],[67,33,67,38],[68,1,68,8],[68,9,68,12],[68,13,68,16],[68,18,68,27],[68,28,68,32],[67,1,67,8],[67,9,67,12],[67,13,67,16],[67,18,67,27],[67,28,67,32],[66,33,66,38],[66,40,66,49],[66,50,66,51],[66,52,66,54],[66,55,66,58],[66,59,66,61],[65,40,65,49],[65,50,65,51],[65,52,65,54],[65,55,65,58],[65,59,65,61],[65,33,65,38],[66,1,66,8],[66,9,66,12],[66,13,66,16],[66,18,66,27],[66,28,66,32],[65,1,65,8],[65,9,65,12],[65,13,65,16],[65,18,65,27],[65,28,65,32],[64,33,64,38],[64,40,64,49],[64,50,64,51],[64,52,64,54],[64,55,64,58],[64,59,64,61],[63,40,63,49],[63,50,63,51],[63,52,63,54],[63,55,63,58],[63,59,63,61],[63,33,63,38],[64,1,64,8],[64,9,64,12],[64,13,64,16],[64,18,64,27],[64,28,64,32],[63,1,63,8],[63,9,63,12],[63,13,63,16],[63,18,63,27],[63,28,63,32],[62,33,62,38],[62,40,62,49],[62,50,62,51],[62,52,62,54],[62,55,62,58],[62,59,62,61],[61,40,61,49],[61,50,61,51],[61,52,61,54],[61,55,61,58],[61,59,61,61],[61,33,61,38],[62,1,62,8],[62,9,62,12],[62,13,62,16],[62,18,62,27],[62,28,62,32],[61,1,61,8],[61,9,61,12],[61,13,61,16],[61,18,61,27],[61,28,61,32],[60,33,60,38],[60,40,60,49],[60,50,60,51],[60,52,60,54],[60,55,60,58],[60,59,60,61],[59,40,59,49],[59,50,59,51],[59,52,59,54],[59,55,59,58],[59,59,59,61],[59,33,59,38],[60,1,60,8],[60,9,60,12],[60,13,60,16],[60,18,60,27],[60,28,60,32],[59,1,59,8],[59,9,59,12],[59,13,59,16],[59,18,59,27],[59,28,59,32],[58,33,58,38],[58,40,58,49],[58,50,58,51],[58,52,58,54],[58,55,58,58],[58,59,58,61],[57,40,57,49],[57,50,57,51],[57,52,57,54],[57,55,57,58],[57,59,57,61],[57,33,57,38],[58,1,58,8],[58,9,58,12],[58,13,58,16],[58,18,58,27],[58,28,58,32],[57,1,57,8],[57,9,57,12],[57,13,57,16],[57,18,57,27],[57,28,57,32],[56,33,56,38],[56,40,56,49],[56,50,56,51],[56,52,56,54],[56,55,56,58],[56,59,56,61],[55,40,55,49],[55,50,55,51],[55,52,55,54],[55,55,55,58],[55,59,55,61],[55,33,55,38],[56,1,56,8],[56,9,56,12],[56,13,56,16],[56,18,56,27],[56,28,56,32],[55,1,55,8],[55,9,55,12],[55,13,55,16],[55,18,55,27],[55,28,55,32],[54,33,54,38],[54,40,54,49],[54,50,54,51],[54,52,54,54],[54,55,54,58],[54,59,54,61],[53,40,53,49],[53,50,53,51],[53,52,53,54],[53,55,53,58],[53,59,53,61],[53,33,53,38],[54,1,54,8],[54,9,54,12],[54,13,54,16],[54,18,54,27],[54,28,54,32],[53,1,53,8],[53,9,53,12],[53,13,53,16],[53,18,53,27],[53,28,53,32],[52,33,52,38],[52,40,52,49],[52,50,52,51],[52,52,52,54],[52,55,52,58],[52,59,52,61],[51,40,51,49],[51,50,51,51],[51,52,51,54],[51,55,51,58],[51,59,51,61],[51,33,51,38],[52,1,52,8],[52,9,52,12],[52,13,52,16],[52,18,52,27],[52,28,52,32],[51,1,51,8],[51,9,51,12],[51,13,51,16],[51,18,51,27],[51,28,51,32],[50,33,50,38],[50,40,50,49],[50,50,50,51],[50,52,50,54],[50,55,50,58],[50,59,50,61],[49,40,49,49],[49,50,49,51],[49,52,49,54],[49,55,49,58],[49,59,49,61],[49,33,49,38],[50,1,50,8],[50,9,50,12],[50,13,50,16],[50,18,50,27],[50,28,50,32],[49,1,49,8],[49,9,49,12],[49,13,49,16],[49,18,49,27],[49,28,49,32],[48,33,48,38],[48,40,48,49],[48,50,48,51],[48,52,48,54],[48,55,48,58],[48,59,48,61],[47,40,47,49],[47,50,47,51],[47,52,47,54],[47,55,47,58],[47,59,47,61],[47,33,47,38],[48,1,48,8],[48,9,48,12],[48,13,48,16],[48,18,48,27],[48,28,48,32],[47,1,47,8],[47,9,47,12],[47,13,47,16],[47,18,47,27],[47,28,47,32],[46,33,46,38],[46,40,46,49],[46,50,46,51],[46,52,46,54],[46,55,46,58],[46,59,46,61],[45,40,45,49],[45,50,45,51],[45,52,45,54],[45,55,45,58],[45,59,45,61],[45,33,45,38],[46,1,46,8],[46,9,46,12],[46,13,46,16],[46,18,46,27],[46,28,46,32],[45,1,45,8],[45,9,45,12],[45,13,45,16],[45,18,45,27],[45,28,45,32],[44,33,44,38],[44,40,44,49],[44,50,44,51],[44,52,44,54],[44,55,44,58],[44,59,44,61],[43,40,43,49],[43,50,43,51],[43,52,43,54],[43,55,43,58],[43,59,43,61],[43,33,43,38],[44,1,44,8],[44,9,44,12],[44,13,44,16],[44,18,44,27],[44,28,44,32],[43,1,43,8],[43,9,43,12],[43,13,43,16],[43,18,43,27],[43,28,43,32],[42,33,42,38],[42,40,42,49],[42,50,42,51],[42,52,42,54],[42,55,42,58],[42,59,42,61],[41,40,41,49],[41,50,41,51],[41,52,41,54],[41,55,41,58],[41,59,41,61],[41,33,41,38],[42,1,42,8],[42,9,42,12],[42,13,42,16],[42,18,42,27],[42,28,42,32],[41,1,41,8],[41,9,41,12],[41,13,41,16],[41,18,41,27],[41,28,41,32],[40,33,40,38],[40,40,40,49],[40,50,40,51],[40,52,40,54],[40,55,40,58],[40,59,40,61],[39,40,39,49],[39,50,39,51],[39,52,39,54],[39,55,39,58],[39,59,39,61],[39,33,39,38],[40,1,40,8],[40,9,40,12],[40,13,40,16],[40,18,40,27],[40,28,40,32],[39,1,39,8],[39,9,39,12],[39,13,39,16],[39,18,39,27],[39,28,39,32],[38,33,38,38],[38,40,38,49],[38,50,38,51],[38,52,38,54],[38,55,38,58],[38,59,38,61],[37,40,37,49],[37,50,37,51],[37,52,37,54],[37,55,37,58],[37,59,37,61],[37,33,37,38],[38,1,38,8],[38,9,38,12],[38,13,38,16],[38,18,38,27],[38,28,38,32],[37,1,37,8],[37,9,37,12],[37,13,37,16],[37,18,37,27],[37,28,37,32],[36,33,36,38],[36,40,36,49],[36,50,36,51],[36,52,36,54],[36,55,36,58],[36,59,36,61],[35,40,35,49],[35,50,35,51],[35,52,35,54],[35,55,35,58],[35,59,35,61],[35,33,35,38],[36,1,36,8],[36,9,36,12],[36,13,36,16],[36,18,36,27],[36,28,36,32],[35,1,35,8],[35,9,35,12],[35,13,35,16],[35,18,35,27],[35,28,35,32],[34,33,34,38],[34,40,34,49],[34,50,34,51],[34,52,34,54],[34,55,34,58],[34,59,34,61],[33,40,33,49],[33,50,33,51],[33,52,33,54],[33,55,33,58],[33,59,33,61],[33,33,33,38],[34,1,34,8],[34,9,34,12],[34,13,34,16],[34,18,34,27],[34,28,34,32],[33,1,33,8],[33,9,33,12],[33,13,33,16],[33,18,33,27],[33,28,33,32],[32,33,32,38],[32,40,32,49],[32,50,32,51],[32,52,32,54],[32,55,32,58],[32,59,32,61],[31,40,31,49],[31,50,31,51],[31,52,31,54],[31,55,31,58],[31,59,31,61],[31,33,31,38],[32,1,32,8],[32,9,32,12],[32,13,32,16],[32,18,32,27],[32,28,32,32],[31,1,31,8],[31,9,31,12],[31,13,31,16],[31,18,31,27],[31,28,31,32],[30,33,30,38],[30,40,30,49],[30,50,30,51],[30,52,30,54],[30,55,30,58],[30,59,30,61],[29,40,29,49],[29,50,29,51],[29,52,29,54],[29,55,29,58],[29,59,29,61],[29,33,29,38],[30,1,30,8],[30,9,30,12],[30,13,30,16],[30,18,30,27],[30,28,30,32],[29,1,29,8],[29,9,29,12],[29,13,29,16],[29,18,29,27],[29,28,29,32],[28,33,28,38],[28,40,28,49],[28,50,28,51],[28,52,28,54],[28,55,28,58],[28,59,28,61],[27,40,27,49],[27,50,27,51],[27,52,27,54],[27,55,27,58],[27,59,27,61],[27,33,27,39],[28,1,28,8],[28,9,28,12],[28,13,28,16],[28,18,28,27],[28,28,28,32],[27,1,27,8],[27,9,27,12],[27,13,27,17],[27,18,27,27],[27,28,27,32],[25,1,25,7],[25,8,25,11],[25,13,25,16],[25,18,25,21],[25,22,25,27],[25,29,25,61],[22,28,22,61],[23,8,23,27],[23,29,23,34],[23,35,23,61],[24,8,24,27],[24,29,24,61],[19,1,19,7],[19,8,19,27],[20,1,21,7],[20,8,21,27],[21,29,21,61],[22,1,24,7],[22,8,22,9],[22,10,22,17],[22,18,22,21],[22,22,22,26],[18,29,19,34],[18,35,19,45],[18,47,19,50],[18,51,19,54],[18,55,19,57],[18,58,19,61],[14,61,15,61],[15,1,15,7],[15,8,15,27],[17,1,18,27],[17,29,17,34],[17,35,17,38],[17,40,17,41],[17,43,17,44],[17,47,17,55],[17,56,17,61],[14,1,14,7],[14,8,14,11],[14,13,14,16],[14,18,14,21],[14,29,15,41],[14,42,15,60],[12,29,13,41],[12,42,13,61],[13,1,13,7],[13,8,13,11],[13,13,13,16],[13,18,13,21],[8,61,9,61],[10,1,12,7],[10,8,10,9],[10,10,10,17],[10,18,10,21],[10,22,10,26],[10,29,11,41],[10,42,11,61],[11,8,11,27],[12,8,12,27],[8,1,9,7],[8,8,9,17],[8,18,9,27],[8,29,9,41],[8,42,9,60],[0,0,0,62],[1,1,1,20],[1,47,1,61],[2,1,3,5],[2,6,3,15],[2,16,3,20],[2,47,2,61],[3,47,3,61],[7,18,7,27],[5,1,5,27],[5,29,5,61],[6,1,6,7],[6,8,6,17],[6,18,6,27],[6,29,7,41],[6,42,7,60],[6,61,7,61],[7,1,7,7],[7,8,7,17]]}
["★ご注文シート★"]
[null,"★ご注文の受付★",null,null,null,null,null,null,null,null,null,null,null,null,null,null,null,null,null,null,null,null,null,null,null,null,null,null,null,null,null,null,null,null,null,null,null,null,null,null,null,null,null,null,null,null,null,"「今治謹製公式オンラインショップ」お問合せ先"]
[null,"添付ファイルにて",null,null,null,null,"info@imabari-kinsei.com",null,null,null,null,null,null,null,null,null,"に送信ください。",null,null,null,null,null,null,null,null,null,null,null,null,null,null,null,null,null,null,null,null,null,null,null,null,null,null,null,null,null,null,"TEL：06-4396-7117"]
[null,null,null,null,null,null,null,null,null,null,null,null,null,null,null,null,null,null,null,null,null,null,null,null,null,null,null,null,null,null,null,null,null,null,null,null,null,null,null,null,null,null,null,null,null,null,null,"★受付時間：10:00～17:00（土日祝日定休日）"]
[]
[null,"ご注文者様情報",null,null,null,null,null,null,null,null,null,null,null,null,null,null,null,null,null,null,null,null,null,null,null,null,null,null,null,"のし・包装紙"]
[null,null,null,null,null,null,null,null,"氏名（姓）",null,null,null,null,null,null,null,null,null,"氏名（名）",null,null,null,null,null,null,null,null,null,null,"①のしの有無　　　　　※必須"]
[null,"フリガナ"]
[null,"お名前",null,null,null,null,null,null,null,null,null,null,null,null,null,null,null,null,null,null,null,null,null,null,null,null,null,null,null,"②のし番号　　　※①で「内のし」「外のし」をご選択の場合必須"]
[]
[null,"ご住所",null,null,null,null,null,null,"〒",null,null,null,null,null,null,null,null,null,"都道府県",null,null,null,null,null,null,null,null,null,null,"③のしの表書（オーダーメイド）　※②で7・8・13・14番をご選択の場合必須"]
[]
[null,null,null,null,null,null,null,null,null,null,null,null,null,null,null,null,null,null,null,null,null,null,null,null,null,null,null,null,null,"④のしのお名前\n（のしの下段に明記するお名前）",null,null,null,null,null,null,null,null,null,null,null,null,"不要"]
[null,"お電話番号",null,null,null,null,null,null,null,null,null,null,"-",null,null,null,null,"-"]
[null,"緊急連絡先",null,null,null,null,null,null,null,null,null,null,"-",null,null,null,null,"-",null,null,null,null,null,null,null,null,null,null,null,"④包装紙　　　　　　　※必須"]
[null,"メールアドレス"]
[]
[null,"送り主様情報\n※ご注文者様と送り主様が同じ場合はご記入不要\n※運送便の送り状の「ご依頼主」に明記されるお名前・ご住所",null,null,null,null,null,null,null,null,null,null,null,null,null,null,null,null,null,null,null,null,null,null,null,null,null,null,null,"配送希望日",null,null,null,null,null,null,null,null,null,"年",null,null,"月",null,null,"日",null,"合計お支払金額（税込）",null,null,null,null,null,null,null,null,{"$f":"SUM(AZ19,BG19)","v":0}]
[null,null,null,null,null,null,null,null,null,null,null,null,null,null,null,null,null,null,null,null,null,null,null,null,null,null,null,null,null,"配送希望時間",null,null,null,null,null,null,null,null,null,null,null,null,null,null,null,null,null,"商品代金",null,null,null,{"$f":"SUM(BD30:BG79)","v":0},null,null,null,"配送料",null,null,{"$f":"SUM(BH30:BJ79)","v":0}]
[null,"フリガナ"]
[null,"お名前"]
[]
[null,"ご住所",null,null,null,null,null,null,"〒",null,null,null,null,null,null,null,null,null,"都道府県",null,null,null,null,null,null,null,null,null,"★お支払方法・決済情報は、後日送らせていただきますメールでご注文内容を確認いただいた上でご登録お願い致します。"]
[null,null,null,null,null,null,null,null,null,null,null,null,null,null,null,null,null,null,null,null,null,null,null,null,null,null,null,null,null,"備考欄"]
[]
[null,"お電話番号",null,null,null,null,null,null,null,null,null,null,"-",null,null,null,null,"-"]
[]
["№","お届け先様のお名前",null,null,null,null,null,null,null,"郵便番号",null,null,null,"お届け先\n都道府県",null,null,null,null,"お届け先ご住所",null,null,null,null,null,null,null,null,null,"電話番号",null,null,null,null,"商品番号",null,null,null,null,null,null,"商品名",null,null,null,null,null,null,null,null,null,"数量",null,"単価",null,null,"商品金額合計",null,null,null,"配送料"]
["例","今治　花子",null,null,null,null,null,null,null,"556-0017",null,null,null,"大阪府",null,null,null,null,"大阪市浪速区湊町1-2-3\nマルイト難波ビル",null,null,null,null,null,null,null,null,null,"06-4396-7076",null,null,null,null,"066IM20330000024",null,null,null,null,null,null,{"$f":"IF(ISERROR(VLOOKUP($AH29,商品一覧!$B:$D,2,0)),\"\",VLOOKUP($AH29,商品一覧!$B:$D,2,0))","v":"今治謹製　紋織タオル　木箱入り　フェイスタオル２枚セット　IM2033(今治製)"},null,null,null,null,null,null,null,null,null,2,null,{"$f":"IF(ISERROR(VLOOKUP($AH29,商品一覧!$B:$D,3,0)),\"\",VLOOKUP($AH29,商品一覧!$B:$D,3,0))","v":2160},null,null,{"$f":"IF(ISERROR(AY29*BA29),\"\",AY29*BA29)","v":4320},null,null,null,{"$f":"IFERROR(IF($BD29=\"\",\"\",IF($BD29>=5400,0,VLOOKUP($N29,配送料・支払方法!$B$2:$C$49,2,0))),\"\")","v":756}]
[1,null,null,null,null,null,null,null,null,null,null,null,null,null,null,null,null,null,null,null,null,null,null,null,null,null,null,null,null,null,null,null,null,null,null,null,null,null,null,null,{"$f":"IF(ISERROR(VLOOKUP($AH30,商品一覧!$B:$D,2,0)),\"\",VLOOKUP($AH30,商品一覧!$B:$D,2,0))","v":""},null,null,null,null,null,null,null,null,null,null,null,{"$f":"IF(ISERROR(VLOOKUP($AH30,商品一覧!$B:$D,3,0)),\"\",VLOOKUP($AH30,商品一覧!$B:$D,3,0))","v":""},null,null,{"$f":"IF(ISERROR(AY30*BA30),\"\",AY30*BA30)","v":""},null,null,null,{"$f":"IFERROR(IF($BD30=\"\",\"\",IF($BD30>=5400,0,VLOOKUP($N30,配送料・支払方法!$B$2:$C$49,2,0))),\"\")","v":""}]
[2,null,null,null,null,null,null,null,null,null,null,null,null,null,null,null,null,null,null,null,null,null,null,null,null,null,null,null,null,null,null,null,null,null,null,null,null,null,null,null,{"$f":"IF(ISERROR(VLOOKUP($AH31,商品一覧!$B:$D,2,0)),\"\",VLOOKUP($AH31,商品一覧!$B:$D,2,0))","v":""},null,null,null,null,null,null,null,null,null,null,null,{"$f":"IF(ISERROR(VLOOKUP($AH31,商品一覧!$B:$D,3,0)),\"\",VLOOKUP($AH31,商品一覧!$B:$D,3,0))","v":""},null,null,{"$f":"IF(ISERROR(AY31*BA31),\"\",AY31*BA31)","v":""},null,null,null,{"$f":"IFERROR(IF($BD31=\"\",\"\",IF($BD31>=5400,0,VLOOKUP($N31,配送料・支払方法!$B$2:$C$49,2,0))),\"\")","v":""}]
[3,null,null,null,null,null,null,null,null,null,null,null,null,null,null,null,null,null,null,null,null,null,null,null,null,null,null,null,null,null,null,null,null,null,null,null,null,null,null,null,{"$f":"IF(ISERROR(VLOOKUP($AH32,商品一覧!$B:$D,2,0)),\"\",VLOOKUP($AH32,商品一覧!$B:$D,2,0))","v":""},null,null,null,null,null,null,null,null,null,null,null,{"$f":"IF(ISERROR(VLOOKUP($AH32,商品一覧!$B:$D,3,0)),\"\",VLOOKUP($AH32,商品一覧!$B:$D,3,0))","v":""},null,null,"",null,null,null,{"$f":"IFERROR(IF($BD32=\"\",\"\",IF($BD32>=5400,0,VLOOKUP($N32,配送料・支払方法!$B$2:$C$49,2,0))),\"\")","v":""}]
[4,null,null,null,null,null,null,null,null,null,null,null,null,null,null,null,null,null,null,null,null,null,null,null,null,null,null,null,null,null,null,null,null,null,null,null,null,null,null,null,{"$f":"IF(ISERROR(VLOOKUP($AH33,商品一覧!$B:$D,2,0)),\"\",VLOOKUP($AH33,商品一覧!$B:$D,2,0))","v":""},null,null,null,null,null,null,null,null,null,null,null,{"$f":"IF(ISERROR(VLOOKUP($AH33,商品一覧!$B:$D,3,0)),\"\",VLOOKUP($AH33,商品一覧!$B:$D,3,0))","v":""},null,null,"",null,null,null,{"$f":"IFERROR(IF($BD33=\"\",\"\",IF($BD33>=5400,0,VLOOKUP($N33,配送料・支払方法!$B$2:$C$49,2,0))),\"\")","v":""}]
[5,null,null,null,null,null,null,null,null,null,null,null,null,null,null,null,null,null,null,null,null,null,null,null,null,null,null,null,null,null,null,null,null,null,null,null,null,null,null,null,{"$f":"IF(ISERROR(VLOOKUP($AH34,商品一覧!$B:$D,2,0)),\"\",VLOOKUP($AH34,商品一覧!$B:$D,2,0))","v":""},null,null,null,null,null,null,null,null,null,null,null,{"$f":"IF(ISERROR(VLOOKUP($AH34,商品一覧!$B:$D,3,0)),\"\",VLOOKUP($AH34,商品一覧!$B:$D,3,0))","v":""},null,null,"",null,null,null,{"$f":"IFERROR(IF($BD34=\"\",\"\",IF($BD34>=5400,0,VLOOKUP($N34,配送料・支払方法!$B$2:$C$49,2,0))),\"\")","v":""}]
[6,null,null,null,null,null,null,null,null,null,null,null,null,null,null,null,null,null,null,null,null,null,null,null,null,null,null,null,null,null,null,null,null,null,null,null,null,null,null,null,{"$f":"IF(ISERROR(VLOOKUP($AH35,商品一覧!$B:$D,2,0)),\"\",VLOOKUP($AH35,商品一覧!$B:$D,2,0))","v":""},null,null,null,null,null,null,null,null,null,null,null,{"$f":"IF(ISERROR(VLOOKUP($AH35,商品一覧!$B:$D,3,0)),\"\",VLOOKUP($AH35,商品一覧!$B:$D,3,0))","v":""},null,null,"",null,null,null,{"$f":"IFERROR(IF($BD35=\"\",\"\",IF($BD35>=5400,0,VLOOKUP($N35,配送料・支払方法!$B$2:$C$49,2,0))),\"\")","v":""}]
[7,null,null,null,null,null,null,null,null,null,null,null,null,null,null,null,null,null,null,null,null,null,null,null,null,null,null,null,null,null,null,null,null,null,null,null,null,null,null,null,{"$f":"IF(ISERROR(VLOOKUP($AH36,商品一覧!$B:$D,2,0)),\"\",VLOOKUP($AH36,商品一覧!$B:$D,2,0))","v":""},null,null,null,null,null,null,null,null,null,null,null,{"$f":"IF(ISERROR(VLOOKUP($AH36,商品一覧!$B:$D,3,0)),\"\",VLOOKUP($AH36,商品一覧!$B:$D,3,0))","v":""},null,null,"",null,null,null,{"$f":"IFERROR(IF($BD36=\"\",\"\",IF($BD36>=5400,0,VLOOKUP($N36,配送料・支払方法!$B$2:$C$49,2,0))),\"\")","v":""}]
[8,null,null,null,null,null,null,null,null,null,null,null,null,null,null,null,null,null,null,null,null,null,null,null,null,null,null,null,null,null,null,null,null,null,null,null,null,null,null,null,{"$f":"IF(ISERROR(VLOOKUP($AH37,商品一覧!$B:$D,2,0)),\"\",VLOOKUP($AH37,商品一覧!$B:$D,2,0))","v":""},null,null,null,null,null,null,null,null,null,null,null,{"$f":"IF(ISERROR(VLOOKUP($AH37,商品一覧!$B:$D,3,0)),\"\",VLOOKUP($AH37,商品一覧!$B:$D,3,0))","v":""},null,null,"",null,null,null,{"$f":"IFERROR(IF($BD37=\"\",\"\",IF($BD37>=5400,0,VLOOKUP($N37,配送料・支払方法!$B$2:$C$49,2,0))),\"\")","v":""}]
[9,null,null,null,null,null,null,null,null,null,null,null,null,null,null,null,null,null,null,null,null,null,null,null,null,null,null,null,null,null,null,null,null,null,null,null,null,null,null,null,{"$f":"IF(ISERROR(VLOOKUP($AH38,商品一覧!$B:$D,2,0)),\"\",VLOOKUP($AH38,商品一覧!$B:$D,2,0))","v":""},null,null,null,null,null,null,null,null,null,null,null,{"$f":"IF(ISERROR(VLOOKUP($AH38,商品一覧!$B:$D,3,0)),\"\",VLOOKUP($AH38,商品一覧!$B:$D,3,0))","v":""},null,null,"",null,null,null,{"$f":"IFERROR(IF($BD38=\"\",\"\",IF($BD38>=5400,0,VLOOKUP($N38,配送料・支払方法!$B$2:$C$49,2,0))),\"\")","v":""}]
[10,null,null,null,null,null,null,null,null,null,null,null,null,null,null,null,null,null,null,null,null,null,null,null,null,null,null,null,null,null,null,null,null,null,null,null,null,null,null,null,{"$f":"IF(ISERROR(VLOOKUP($AH39,商品一覧!$B:$D,2,0)),\"\",VLOOKUP($AH39,商品一覧!$B:$D,2,0))","v":""},null,null,null,null,null,null,null,null,null,null,null,{"$f":"IF(ISERROR(VLOOKUP($AH39,商品一覧!$B:$D,3,0)),\"\",VLOOKUP($AH39,商品一覧!$B:$D,3,0))","v":""},null,null,"",null,null,null,{"$f":"IFERROR(IF($BD39=\"\",\"\",IF($BD39>=5400,0,VLOOKUP($N39,配送料・支払方法!$B$2:$C$49,2,0))),\"\")","v":""}]
[11,null,null,null,null,null,null,null,null,null,null,null,null,null,null,null,null,null,null,null,null,null,null,null,null,null,null,null,null,null,null,null,null,null,null,null,null,null,null,null,{"$f":"IF(ISERROR(VLOOKUP($AH40,商品一覧!$B:$D,2,0)),\"\",VLOOKUP($AH40,商品一覧!$B:$D,2,0))","v":""},null,null,null,null,null,null,null,null,null,null,null,{"$f":"IF(ISERROR(VLOOKUP($AH40,商品一覧!$B:$D,3,0)),\"\",VLOOKUP($AH40,商品一覧!$B:$D,3,0))","v":""},null,null,"",null,null,null,{"$f":"IFERROR(IF($BD40=\"\",\"\",IF($BD40>=5400,0,VLOOKUP($N40,配送料・支払方法!$B$2:$C$49,2,0))),\"\")","v":""}]
[12,null,null,null,null,null,null,null,null,null,null,null,null,null,null,null,null,null,null,null,null,null,null,null,null,null,null,null,null,null,null,null,null,null,null,null,null,null,null,null,{"$f":"IF(ISERROR(VLOOKUP($AH41,商品一覧!$B:$D,2,0)),\"\",VLOOKUP($AH41,商品一覧!$B:$D,2,0))","v":""},null,null,null,null,null,null,null,null,null,null,null,{"$f":"IF(ISERROR(VLOOKUP($AH41,商品一覧!$B:$D,3,0)),\"\",VLOOKUP($AH41,商品一覧!$B:$D,3,0))","v":""},null,null,"",null,null,null,{"$f":"IFERROR(IF($BD41=\"\",\"\",IF($BD41>=5400,0,VLOOKUP($N41,配送料・支払方法!$B$2:$C$49,2,0))),\"\")","v":""}]
[13,null,null,null,null,null,null,null,null,null,null,null,null,null,null,null,null,null,null,null,null,null,null,null,null,null,null,null,null,null,null,null,null,null,null,null,null,null,null,null,{"$f":"IF(ISERROR(VLOOKUP($AH42,商品一覧!$B:$D,2,0)),\"\",VLOOKUP($AH42,商品一覧!$B:$D,2,0))","v":""},null,null,null,null,null,null,null,null,null,null,null,{"$f":"IF(ISERROR(VLOOKUP($AH42,商品一覧!$B:$D,3,0)),\"\",VLOOKUP($AH42,商品一覧!$B:$D,3,0))","v":""},null,null,"",null,null,null,{"$f":"IFERROR(IF($BD42=\"\",\"\",IF($BD42>=5400,0,VLOOKUP($N42,配送料・支払方法!$B$2:$C$49,2,0))),\"\")","v":""}]
[14,null,null,null,null,null,null,null,null,null,null,null,null,null,null,null,null,null,null,null,null,null,null,null,null,null,null,null,null,null,null,null,null,null,null,null,null,null,null,null,{"$f":"IF(ISERROR(VLOOKUP($AH43,商品一覧!$B:$D,2,0)),\"\",VLOOKUP($AH43,商品一覧!$B:$D,2,0))","v":""},null,null,null,null,null,null,null,null,null,null,null,{"$f":"IF(ISERROR(VLOOKUP($AH43,商品一覧!$B:$D,3,0)),\"\",VLOOKUP($AH43,商品一覧!$B:$D,3,0))","v":""},null,null,"",null,null,null,{"$f":"IFERROR(IF($BD43=\"\",\"\",IF($BD43>=5400,0,VLOOKUP($N43,配送料・支払方法!$B$2:$C$49,2,0))),\"\")","v":""}]
[15,null,null,null,null,null,null,null,null,null,null,null,null,null,null,null,null,null,null,null,null,null,null,null,null,null,null,null,null,null,null,null,null,null,null,null,null,null,null,null,{"$f":"IF(ISERROR(VLOOKUP($AH44,商品一覧!$B:$D,2,0)),\"\",VLOOKUP($AH44,商品一覧!$B:$D,2,0))","v":""},null,null,null,null,null,null,null,null,null,null,null,{"$f":"IF(ISERROR(VLOOKUP($AH44,商品一覧!$B:$D,3,0)),\"\",VLOOKUP($AH44,商品一覧!$B:$D,3,0))","v":""},null,null,"",null,null,null,{"$f":"IFERROR(IF($BD44=\"\",\"\",IF($BD44>=5400,0,VLOOKUP($N44,配送料・支払方法!$B$2:$C$49,2,0))),\"\")","v":""}]
[16,null,null,null,null,null,null,null,null,null,null,null,null,null,null,null,null,null,null,null,null,null,null,null,null,null,null,null,null,null,null,null,null,null,null,null,null,null,null,null,{"$f":"IF(ISERROR(VLOOKUP($AH45,商品一覧!$B:$D,2,0)),\"\",VLOOKUP($AH45,商品一覧!$B:$D,2,0))","v":""},null,null,null,null,null,null,null,null,null,null,null,{"$f":"IF(ISERROR(VLOOKUP($AH45,商品一覧!$B:$D,3,0)),\"\",VLOOKUP($AH45,商品一覧!$B:$D,3,0))","v":""},null,null,"",null,null,null,{"$f":"IFERROR(IF($BD45=\"\",\"\",IF($BD45>=5400,0,VLOOKUP($N45,配送料・支払方法!$B$2:$C$49,2,0))),\"\")","v":""}]
[17,null,null,null,null,null,null,null,null,null,null,null,null,null,null,null,null,null,null,null,null,null,null,null,null,null,null,null,null,null,null,null,null,null,null,null,null,null,null,null,{"$f":"IF(ISERROR(VLOOKUP($AH46,商品一覧!$B:$D,2,0)),\"\",VLOOKUP($AH46,商品一覧!$B:$D,2,0))","v":""},null,null,null,null,null,null,null,null,null,null,null,{"$f":"IF(ISERROR(VLOOKUP($AH46,商品一覧!$B:$D,3,0)),\"\",VLOOKUP($AH46,商品一覧!$B:$D,3,0))","v":""},null,null,"",null,null,null,{"$f":"IFERROR(IF($BD46=\"\",\"\",IF($BD46>=5400,0,VLOOKUP($N46,配送料・支払方法!$B$2:$C$49,2,0))),\"\")","v":""}]
[18,null,null,null,null,null,null,null,null,null,null,null,null,null,null,null,null,null,null,null,null,null,null,null,null,null,null,null,null,null,null,null,null,null,null,null,null,null,null,null,{"$f":"IF(ISERROR(VLOOKUP($AH47,商品一覧!$B:$D,2,0)),\"\",VLOOKUP($AH47,商品一覧!$B:$D,2,0))","v":""},null,null,null,null,null,null,null,null,null,null,null,{"$f":"IF(ISERROR(VLOOKUP($AH47,商品一覧!$B:$D,3,0)),\"\",VLOOKUP($AH47,商品一覧!$B:$D,3,0))","v":""},null,null,"",null,null,null,{"$f":"IFERROR(IF($BD47=\"\",\"\",IF($BD47>=5400,0,VLOOKUP($N47,配送料・支払方法!$B$2:$C$49,2,0))),\"\")","v":""}]
[19,null,null,null,null,null,null,null,null,null,null,null,null,null,null,null,null,null,null,null,null,null,null,null,null,null,null,null,null,null,null,null,null,null,null,null,null,null,null,null,{"$f":"IF(ISERROR(VLOOKUP($AH48,商品一覧!$B:$D,2,0)),\"\",VLOOKUP($AH48,商品一覧!$B:$D,2,0))","v":""},null,null,null,null,null,null,null,null,null,null,null,{"$f":"IF(ISERROR(VLOOKUP($AH48,商品一覧!$B:$D,3,0)),\"\",VLOOKUP($AH48,商品一覧!$B:$D,3,0))","v":""},null,null,"",null,null,null,{"$f":"IFERROR(IF($BD48=\"\",\"\",IF($BD48>=5400,0,VLOOKUP($N48,配送料・支払方法!$B$2:$C$49,2,0))),\"\")","v":""}]
[20,null,null,null,null,null,null,null,null,null,null,null,null,null,null,null,null,null,null,null,null,null,null,null,null,null,null,null,null,null,null,null,null,null,null,null,null,null,null,null,{"$f":"IF(ISERROR(VLOOKUP($AH49,商品一覧!$B:$D,2,0)),\"\",VLOOKUP($AH49,商品一覧!$B:$D,2,0))","v":""},null,null,null,null,null,null,null,null,null,null,null,{"$f":"IF(ISERROR(VLOOKUP($AH49,商品一覧!$B:$D,3,0)),\"\",VLOOKUP($AH49,商品一覧!$B:$D,3,0))","v":""},null,null,"",null,null,null,{"$f":"IFERROR(IF($BD49=\"\",\"\",IF($BD49>=5400,0,VLOOKUP($N49,配送料・支払方法!$B$2:$C$49,2,0))),\"\")","v":""}]
[21,null,null,null,null,null,null,null,null,null,null,null,null,null,null,null,null,null,null,null,null,null,null,null,null,null,null,null,null,null,null,null,null,null,null,null,null,null,null,null,{"$f":"IF(ISERROR(VLOOKUP($AH50,商品一覧!$B:$D,2,0)),\"\",VLOOKUP($AH50,商品一覧!$B:$D,2,0))","v":""},null,null,null,null,null,null,null,null,null,null,null,{"$f":"IF(ISERROR(VLOOKUP($AH50,商品一覧!$B:$D,3,0)),\"\",VLOOKUP($AH50,商品一覧!$B:$D,3,0))","v":""},null,null,"",null,null,null,{"$f":"IFERROR(IF($BD50=\"\",\"\",IF($BD50>=5400,0,VLOOKUP($N50,配送料・支払方法!$B$2:$C$49,2,0))),\"\")","v":""}]
[22,null,null,null,null,null,null,null,null,null,null,null,null,null,null,null,null,null,null,null,null,null,null,null,null,null,null,null,null,null,null,null,null,null,null,null,null,null,null,null,{"$f":"IF(ISERROR(VLOOKUP($AH51,商品一覧!$B:$D,2,0)),\"\",VLOOKUP($AH51,商品一覧!$B:$D,2,0))","v":""},null,null,null,null,null,null,null,null,null,null,null,{"$f":"IF(ISERROR(VLOOKUP($AH51,商品一覧!$B:$D,3,0)),\"\",VLOOKUP($AH51,商品一覧!$B:$D,3,0))","v":""},null,null,"",null,null,null,{"$f":"IFERROR(IF($BD51=\"\",\"\",IF($BD51>=5400,0,VLOOKUP($N51,配送料・支払方法!$B$2:$C$49,2,0))),\"\")","v":""}]
[23,null,null,null,null,null,null,null,null,null,null,null,null,null,null,null,null,null,null,null,null,null,null,null,null,null,null,null,null,null,null,null,null,null,null,null,null,null,null,null,{"$f":"IF(ISERROR(VLOOKUP($AH52,商品一覧!$B:$D,2,0)),\"\",VLOOKUP($AH52,商品一覧!$B:$D,2,0))","v":""},null,null,null,null,null,null,null,null,null,null,null,{"$f":"IF(ISERROR(VLOOKUP($AH52,商品一覧!$B:$D,3,0)),\"\",VLOOKUP($AH52,商品一覧!$B:$D,3,0))","v":""},null,null,"",null,null,null,{"$f":"IFERROR(IF($BD52=\"\",\"\",IF($BD52>=5400,0,VLOOKUP($N52,配送料・支払方法!$B$2:$C$49,2,0))),\"\")","v":""}]
[24,null,null,null,null,null,null,null,null,null,null,null,null,null,null,null,null,null,null,null,null,null,null,null,null,null,null,null,null,null,null,null,null,null,null,null,null,null,null,null,{"$f":"IF(ISERROR(VLOOKUP($AH53,商品一覧!$B:$D,2,0)),\"\",VLOOKUP($AH53,商品一覧!$B:$D,2,0))","v":""},null,null,null,null,null,null,null,null,null,null,null,{"$f":"IF(ISERROR(VLOOKUP($AH53,商品一覧!$B:$D,3,0)),\"\",VLOOKUP($AH53,商品一覧!$B:$D,3,0))","v":""},null,null,"",null,null,null,{"$f":"IFERROR(IF($BD53=\"\",\"\",IF($BD53>=5400,0,VLOOKUP($N53,配送料・支払方法!$B$2:$C$49,2,0))),\"\")","v":""}]
[25,null,null,null,null,null,null,null,null,null,null,null,null,null,null,null,null,null,null,null,null,null,null,null,null,null,null,null,null,null,null,null,null,null,null,null,null,null,null,null,{"$f":"IF(ISERROR(VLOOKUP($AH54,商品一覧!$B:$D,2,0)),\"\",VLOOKUP($AH54,商品一覧!$B:$D,2,0))","v":""},null,null,null,null,null,null,null,null,null,null,null,{"$f":"IF(ISERROR(VLOOKUP($AH54,商品一覧!$B:$D,3,0)),\"\",VLOOKUP($AH54,商品一覧!$B:$D,3,0))","v":""},null,null,"",null,null,null,{"$f":"IFERROR(IF($BD54=\"\",\"\",IF($BD54>=5400,0,VLOOKUP($N54,配送料・支払方法!$B$2:$C$49,2,0))),\"\")","v":""}]
[26,null,null,null,null,null,null,null,null,null,null,null,null,null,null,null,null,null,null,null,null,null,null,null,null,null,null,null,null,null,null,null,null,null,null,null,null,null,null,null,{"$f":"IF(ISERROR(VLOOKUP($AH55,商品一覧!$B:$D,2,0)),\"\",VLOOKUP($AH55,商品一覧!$B:$D,2,0))","v":""},null,null,null,null,null,null,null,null,null,null,null,{"$f":"IF(ISERROR(VLOOKUP($AH55,商品一覧!$B:$D,3,0)),\"\",VLOOKUP($AH55,商品一覧!$B:$D,3,0))","v":""},null,null,"",null,null,null,{"$f":"IFERROR(IF($BD55=\"\",\"\",IF($BD55>=5400,0,VLOOKUP($N55,配送料・支払方法!$B$2:$C$49,2,0))),\"\")","v":""}]
[27,null,null,null,null,null,null,null,null,null,null,null,null,null,null,null,null,null,null,null,null,null,null,null,null,null,null,null,null,null,null,null,null,null,null,null,null,null,null,null,{"$f":"IF(ISERROR(VLOOKUP($AH56,商品一覧!$B:$D,2,0)),\"\",VLOOKUP($AH56,商品一覧!$B:$D,2,0))","v":""},null,null,null,null,null,null,null,null,null,null,null,{"$f":"IF(ISERROR(VLOOKUP($AH56,商品一覧!$B:$D,3,0)),\"\",VLOOKUP($AH56,商品一覧!$B:$D,3,0))","v":""},null,null,"",null,null,null,{"$f":"IFERROR(IF($BD56=\"\",\"\",IF($BD56>=5400,0,VLOOKUP($N56,配送料・支払方法!$B$2:$C$49,2,0))),\"\")","v":""}]
[28,null,null,null,null,null,null,null,null,null,null,null,null,null,null,null,null,null,null,null,null,null,null,null,null,null,null,null,null,null,null,null,null,null,null,null,null,null,null,null,{"$f":"IF(ISERROR(VLOOKUP($AH57,商品一覧!$B:$D,2,0)),\"\",VLOOKUP($AH57,商品一覧!$B:$D,2,0))","v":""},null,null,null,null,null,null,null,null,null,null,null,{"$f":"IF(ISERROR(VLOOKUP($AH57,商品一覧!$B:$D,3,0)),\"\",VLOOKUP($AH57,商品一覧!$B:$D,3,0))","v":""},null,null,"",null,null,null,{"$f":"IFERROR(IF($BD57=\"\",\"\",IF($BD57>=5400,0,VLOOKUP($N57,配送料・支払方法!$B$2:$C$49,2,0))),\"\")","v":""}]
[29,null,null,null,null,null,null,null,null,null,null,null,null,null,null,null,null,null,null,null,null,null,null,null,null,null,null,null,null,null,null,null,null,null,null,null,null,null,null,null,{"$f":"IF(ISERROR(VLOOKUP($AH58,商品一覧!$B:$D,2,0)),\"\",VLOOKUP($AH58,商品一覧!$B:$D,2,0))","v":""},null,null,null,null,null,null,null,null,null,null,null,{"$f":"IF(ISERROR(VLOOKUP($AH58,商品一覧!$B:$D,3,0)),\"\",VLOOKUP($AH58,商品一覧!$B:$D,3,0))","v":""},null,null,"",null,null,null,{"$f":"IFERROR(IF($BD58=\"\",\"\",IF($BD58>=5400,0,VLOOKUP($N58,配送料・支払方法!$B$2:$C$49,2,0))),\"\")","v":""}]
[30,null,null,null,null,null,null,null,null,null,null,null,null,null,null,null,null,null,null,null,null,null,null,null,null,null,null,null,null,null,null,null,null,null,null,null,null,null,null,null,{"$f":"IF(ISERROR(VLOOKUP($AH59,商品一覧!$B:$D,2,0)),\"\",VLOOKUP($AH59,商品一覧!$B:$D,2,0))","v":""},null,null,null,null,null,null,null,null,null,null,null,{"$f":"IF(ISERROR(VLOOKUP($AH59,商品一覧!$B:$D,3,0)),\"\",VLOOKUP($AH59,商品一覧!$B:$D,3,0))","v":""},null,null,"",null,null,null,{"$f":"IFERROR(IF($BD59=\"\",\"\",IF($BD59>=5400,0,VLOOKUP($N59,配送料・支払方法!$B$2:$C$49,2,0))),\"\")","v":""}]
[31,null,null,null,null,null,null,null,null,null,null,null,null,null,null,null,null,null,null,null,null,null,null,null,null,null,null,null,null,null,null,null,null,null,null,null,null,null,null,null,{"$f":"IF(ISERROR(VLOOKUP($AH60,商品一覧!$B:$D,2,0)),\"\",VLOOKUP($AH60,商品一覧!$B:$D,2,0))","v":""},null,null,null,null,null,null,null,null,null,null,null,{"$f":"IF(ISERROR(VLOOKUP($AH60,商品一覧!$B:$D,3,0)),\"\",VLOOKUP($AH60,商品一覧!$B:$D,3,0))","v":""},null,null,"",null,null,null,{"$f":"IFERROR(IF($BD60=\"\",\"\",IF($BD60>=5400,0,VLOOKUP($N60,配送料・支払方法!$B$2:$C$49,2,0))),\"\")","v":""}]
[32,null,null,null,null,null,null,null,null,null,null,null,null,null,null,null,null,null,null,null,null,null,null,null,null,null,null,null,null,null,null,null,null,null,null,null,null,null,null,null,{"$f":"IF(ISERROR(VLOOKUP($AH61,商品一覧!$B:$D,2,0)),\"\",VLOOKUP($AH61,商品一覧!$B:$D,2,0))","v":""},null,null,null,null,null,null,null,null,null,null,null,{"$f":"IF(ISERROR(VLOOKUP($AH61,商品一覧!$B:$D,3,0)),\"\",VLOOKUP($AH61,商品一覧!$B:$D,3,0))","v":""},null,null,"",null,null,null,{"$f":"IFERROR(IF($BD61=\"\",\"\",IF($BD61>=5400,0,VLOOKUP($N61,配送料・支払方法!$B$2:$C$49,2,0))),\"\")","v":""}]
[33,null,null,null,null,null,null,null,null,null,null,null,null,null,null,null,null,null,null,null,null,null,null,null,null,null,null,null,null,null,null,null,null,null,null,null,null,null,null,null,{"$f":"IF(ISERROR(VLOOKUP($AH62,商品一覧!$B:$D,2,0)),\"\",VLOOKUP($AH62,商品一覧!$B:$D,2,0))","v":""},null,null,null,null,null,null,null,null,null,null,null,{"$f":"IF(ISERROR(VLOOKUP($AH62,商品一覧!$B:$D,3,0)),\"\",VLOOKUP($AH62,商品一覧!$B:$D,3,0))","v":""},null,null,"",null,null,null,{"$f":"IFERROR(IF($BD62=\"\",\"\",IF($BD62>=5400,0,VLOOKUP($N62,配送料・支払方法!$B$2:$C$49,2,0))),\"\")","v":""}]
[34,null,null,null,null,null,null,null,null,null,null,null,null,null,null,null,null,null,null,null,null,null,null,null,null,null,null,null,null,null,null,null,null,null,null,null,null,null,null,null,{"$f":"IF(ISERROR(VLOOKUP($AH63,商品一覧!$B:$D,2,0)),\"\",VLOOKUP($AH63,商品一覧!$B:$D,2,0))","v":""},null,null,null,null,null,null,null,null,null,null,null,{"$f":"IF(ISERROR(VLOOKUP($AH63,商品一覧!$B:$D,3,0)),\"\",VLOOKUP($AH63,商品一覧!$B:$D,3,0))","v":""},null,null,"",null,null,null,{"$f":"IFERROR(IF($BD63=\"\",\"\",IF($BD63>=5400,0,VLOOKUP($N63,配送料・支払方法!$B$2:$C$49,2,0))),\"\")","v":""}]
[35,null,null,null,null,null,null,null,null,null,null,null,null,null,null,null,null,null,null,null,null,null,null,null,null,null,null,null,null,null,null,null,null,null,null,null,null,null,null,null,{"$f":"IF(ISERROR(VLOOKUP($AH64,商品一覧!$B:$D,2,0)),\"\",VLOOKUP($AH64,商品一覧!$B:$D,2,0))","v":""},null,null,null,null,null,null,null,null,null,null,null,{"$f":"IF(ISERROR(VLOOKUP($AH64,商品一覧!$B:$D,3,0)),\"\",VLOOKUP($AH64,商品一覧!$B:$D,3,0))","v":""},null,null,"",null,null,null,{"$f":"IFERROR(IF($BD64=\"\",\"\",IF($BD64>=5400,0,VLOOKUP($N64,配送料・支払方法!$B$2:$C$49,2,0))),\"\")","v":""}]
[36,null,null,null,null,null,null,null,null,null,null,null,null,null,null,null,null,null,null,null,null,null,null,null,null,null,null,null,null,null,null,null,null,null,null,null,null,null,null,null,{"$f":"IF(ISERROR(VLOOKUP($AH65,商品一覧!$B:$D,2,0)),\"\",VLOOKUP($AH65,商品一覧!$B:$D,2,0))","v":""},null,null,null,null,null,null,null,null,null,null,null,{"$f":"IF(ISERROR(VLOOKUP($AH65,商品一覧!$B:$D,3,0)),\"\",VLOOKUP($AH65,商品一覧!$B:$D,3,0))","v":""},null,null,"",null,null,null,{"$f":"IFERROR(IF($BD65=\"\",\"\",IF($BD65>=5400,0,VLOOKUP($N65,配送料・支払方法!$B$2:$C$49,2,0))),\"\")","v":""}]
[37,null,null,null,null,null,null,null,null,null,null,null,null,null,null,null,null,null,null,null,null,null,null,null,null,null,null,null,null,null,null,null,null,null,null,null,null,null,null,null,{"$f":"IF(ISERROR(VLOOKUP($AH66,商品一覧!$B:$D,2,0)),\"\",VLOOKUP($AH66,商品一覧!$B:$D,2,0))","v":""},null,null,null,null,null,null,null,null,null,null,null,{"$f":"IF(ISERROR(VLOOKUP($AH66,商品一覧!$B:$D,3,0)),\"\",VLOOKUP($AH66,商品一覧!$B:$D,3,0))","v":""},null,null,"",null,null,null,{"$f":"IFERROR(IF($BD66=\"\",\"\",IF($BD66>=5400,0,VLOOKUP($N66,配送料・支払方法!$B$2:$C$49,2,0))),\"\")","v":""}]
[38,null,null,null,null,null,null,null,null,null,null,null,null,null,null,null,null,null,null,null,null,null,null,null,null,null,null,null,null,null,null,null,null,null,null,null,null,null,null,null,{"$f":"IF(ISERROR(VLOOKUP($AH67,商品一覧!$B:$D,2,0)),\"\",VLOOKUP($AH67,商品一覧!$B:$D,2,0))","v":""},null,null,null,null,null,null,null,null,null,null,null,{"$f":"IF(ISERROR(VLOOKUP($AH67,商品一覧!$B:$D,3,0)),\"\",VLOOKUP($AH67,商品一覧!$B:$D,3,0))","v":""},null,null,"",null,null,null,{"$f":"IFERROR(IF($BD67=\"\",\"\",IF($BD67>=5400,0,VLOOKUP($N67,配送料・支払方法!$B$2:$C$49,2,0))),\"\")","v":""}]
[39,null,null,null,null,null,null,null,null,null,null,null,null,null,null,null,null,null,null,null,null,null,null,null,null,null,null,null,null,null,null,null,null,null,null,null,null,null,null,null,{"$f":"IF(ISERROR(VLOOKUP($AH68,商品一覧!$B:$D,2,0)),\"\",VLOOKUP($AH68,商品一覧!$B:$D,2,0))","v":""},null,null,null,null,null,null,null,null,null,null,null,{"$f":"IF(ISERROR(VLOOKUP($AH68,商品一覧!$B:$D,3,0)),\"\",VLOOKUP($AH68,商品一覧!$B:$D,3,0))","v":""},null,null,"",null,null,null,{"$f":"IFERROR(IF($BD68=\"\",\"\",IF($BD68>=5400,0,VLOOKUP($N68,配送料・支払方法!$B$2:$C$49,2,0))),\"\")","v":""}]
[40,null,null,null,null,null,null,null,null,null,null,null,null,null,null,null,null,null,null,null,null,null,null,null,null,null,null,null,null,null,null,null,null,null,null,null,null,null,null,null,{"$f":"IF(ISERROR(VLOOKUP($AH69,商品一覧!$B:$D,2,0)),\"\",VLOOKUP($AH69,商品一覧!$B:$D,2,0))","v":""},null,null,null,null,null,null,null,null,null,null,null,{"$f":"IF(ISERROR(VLOOKUP($AH69,商品一覧!$B:$D,3,0)),\"\",VLOOKUP($AH69,商品一覧!$B:$D,3,0))","v":""},null,null,"",null,null,null,{"$f":"IFERROR(IF($BD69=\"\",\"\",IF($BD69>=5400,0,VLOOKUP($N69,配送料・支払方法!$B$2:$C$49,2,0))),\"\")","v":""}]
[41,null,null,null,null,null,null,null,null,null,null,null,null,null,null,null,null,null,null,null,null,null,null,null,null,null,null,null,null,null,null,null,null,null,null,null,null,null,null,null,{"$f":"IF(ISERROR(VLOOKUP($AH70,商品一覧!$B:$D,2,0)),\"\",VLOOKUP($AH70,商品一覧!$B:$D,2,0))","v":""},null,null,null,null,null,null,null,null,null,null,null,{"$f":"IF(ISERROR(VLOOKUP($AH70,商品一覧!$B:$D,3,0)),\"\",VLOOKUP($AH70,商品一覧!$B:$D,3,0))","v":""},null,null,"",null,null,null,{"$f":"IFERROR(IF($BD70=\"\",\"\",IF($BD70>=5400,0,VLOOKUP($N70,配送料・支払方法!$B$2:$C$49,2,0))),\"\")","v":""}]
[42,null,null,null,null,null,null,null,null,null,null,null,null,null,null,null,null,null,null,null,null,null,null,null,null,null,null,null,null,null,null,null,null,null,null,null,null,null,null,null,{"$f":"IF(ISERROR(VLOOKUP($AH71,商品一覧!$B:$D,2,0)),\"\",VLOOKUP($AH71,商品一覧!$B:$D,2,0))","v":""},null,null,null,null,null,null,null,null,null,null,null,{"$f":"IF(ISERROR(VLOOKUP($AH71,商品一覧!$B:$D,3,0)),\"\",VLOOKUP($AH71,商品一覧!$B:$D,3,0))","v":""},null,null,"",null,null,null,{"$f":"IFERROR(IF($BD71=\"\",\"\",IF($BD71>=5400,0,VLOOKUP($N71,配送料・支払方法!$B$2:$C$49,2,0))),\"\")","v":""}]
[43,null,null,null,null,null,null,null,null,null,null,null,null,null,null,null,null,null,null,null,null,null,null,null,null,null,null,null,null,null,null,null,null,null,null,null,null,null,null,null,{"$f":"IF(ISERROR(VLOOKUP($AH72,商品一覧!$B:$D,2,0)),\"\",VLOOKUP($AH72,商品一覧!$B:$D,2,0))","v":""},null,null,null,null,null,null,null,null,null,null,null,{"$f":"IF(ISERROR(VLOOKUP($AH72,商品一覧!$B:$D,3,0)),\"\",VLOOKUP($AH72,商品一覧!$B:$D,3,0))","v":""},null,null,"",null,null,null,{"$f":"IFERROR(IF($BD72=\"\",\"\",IF($BD72>=5400,0,VLOOKUP($N72,配送料・支払方法!$B$2:$C$49,2,0))),\"\")","v":""}]
[44,null,null,null,null,null,null,null,null,null,null,null,null,null,null,null,null,null,null,null,null,null,null,null,null,null,null,null,null,null,null,null,null,null,null,null,null,null,null,null,{"$f":"IF(ISERROR(VLOOKUP($AH73,商品一覧!$B:$D,2,0)),\"\",VLOOKUP($AH73,商品一覧!$B:$D,2,0))","v":""},null,null,null,null,null,null,null,null,null,null,null,{"$f":"IF(ISERROR(VLOOKUP($AH73,商品一覧!$B:$D,3,0)),\"\",VLOOKUP($AH73,商品一覧!$B:$D,3,0))","v":""},null,null,"",null,null,null,{"$f":"IFERROR(IF($BD73=\"\",\"\",IF($BD73>=5400,0,VLOOKUP($N73,配送料・支払方法!$B$2:$C$49,2,0))),\"\")","v":""}]
[45,null,null,null,null,null,null,null,null,null,null,null,null,null,null,null,null,null,null,null,null,null,null,null,null,null,null,null,null,null,null,null,null,null,null,null,null,null,null,null,{"$f":"IF(ISERROR(VLOOKUP($AH74,商品一覧!$B:$D,2,0)),\"\",VLOOKUP($AH74,商品一覧!$B:$D,2,0))","v":""},null,null,null,null,null,null,null,null,null,null,null,{"$f":"IF(ISERROR(VLOOKUP($AH74,商品一覧!$B:$D,3,0)),\"\",VLOOKUP($AH74,商品一覧!$B:$D,3,0))","v":""},null,null,"",null,null,null,{"$f":"IFERROR(IF($BD74=\"\",\"\",IF($BD74>=5400,0,VLOOKUP($N74,配送料・支払方法!$B$2:$C$49,2,0))),\"\")","v":""}]
[46,null,null,null,null,null,null,null,null,null,null,null,null,null,null,null,null,null,null,null,null,null,null,null,null,null,null,null,null,null,null,null,null,null,null,null,null,null,null,null,{"$f":"IF(ISERROR(VLOOKUP($AH75,商品一覧!$B:$D,2,0)),\"\",VLOOKUP($AH75,商品一覧!$B:$D,2,0))","v":""},null,null,null,null,null,null,null,null,null,null,null,{"$f":"IF(ISERROR(VLOOKUP($AH75,商品一覧!$B:$D,3,0)),\"\",VLOOKUP($AH75,商品一覧!$B:$D,3,0))","v":""},null,null,"",null,null,null,{"$f":"IFERROR(IF($BD75=\"\",\"\",IF($BD75>=5400,0,VLOOKUP($N75,配送料・支払方法!$B$2:$C$49,2,0))),\"\")","v":""}]
[47,null,null,null,null,null,null,null,null,null,null,null,null,null,null,null,null,null,null,null,null,null,null,null,null,null,null,null,null,null,null,null,null,null,null,null,null,null,null,null,{"$f":"IF(ISERROR(VLOOKUP($AH76,商品一覧!$B:$D,2,0)),\"\",VLOOKUP($AH76,商品一覧!$B:$D,2,0))","v":""},null,null,null,null,null,null,null,null,null,null,null,{"$f":"IF(ISERROR(VLOOKUP($AH76,商品一覧!$B:$D,3,0)),\"\",VLOOKUP($AH76,商品一覧!$B:$D,3,0))","v":""},null,null,"",null,null,null,{"$f":"IFERROR(IF($BD76=\"\",\"\",IF($BD76>=5400,0,VLOOKUP($N76,配送料・支払方法!$B$2:$C$49,2,0))),\"\")","v":""}]
[48,null,null,null,null,null,null,null,null,null,null,null,null,null,null,null,null,null,null,null,null,null,null,null,null,null,null,null,null,null,null,null,null,null,null,null,null,null,null,null,{"$f":"IF(ISERROR(VLOOKUP($AH77,商品一覧!$B:$D,2,0)),\"\",VLOOKUP($AH77,商品一覧!$B:$D,2,0))","v":""},null,null,null,null,null,null,null,null,null,null,null,{"$f":"IF(ISERROR(VLOOKUP($AH77,商品一覧!$B:$D,3,0)),\"\",VLOOKUP($AH77,商品一覧!$B:$D,3,0))","v":""},null,null,"",null,null,null,{"$f":"IFERROR(IF($BD77=\"\",\"\",IF($BD77>=5400,0,VLOOKUP($N77,配送料・支払方法!$B$2:$C$49,2,0))),\"\")","v":""}]
[49,null,null,null,null,null,null,null,null,null,null,null,null,null,null,null,null,null,null,null,null,null,null,null,null,null,null,null,null,null,null,null,null,null,null,null,null,null,null,null,{"$f":"IF(ISERROR(VLOOKUP($AH78,商品一覧!$B:$D,2,0)),\"\",VLOOKUP($AH78,商品一覧!$B:$D,2,0))","v":""},null,null,null,null,null,null,null,null,null,null,null,{"$f":"IF(ISERROR(VLOOKUP($AH78,商品一覧!$B:$D,3,0)),\"\",VLOOKUP($AH78,商品一覧!$B:$D,3,0))","v":""},null,null,"",null,null,null,{"$f":"IFERROR(IF($BD78=\"\",\"\",IF($BD78>=5400,0,VLOOKUP($N78,配送料・支払方法!$B$2:$C$49,2,0))),\"\")","v":""}]
[50,null,null,null,null,null,null,null,null,null,null,null,null,null,null,null,null,null,null,null,null,null,null,null,null,null,null,null,null,null,null,null,null,null,null,null,null,null,null,null,{"$f":"IF(ISERROR(VLOOKUP($AH79,商品一覧!$B:$D,2,0)),\"\",VLOOKUP($AH79,商品一覧!$B:$D,2,0))","v":""},null,null,null,null,null,null,null,null,null,null,null,{"$f":"IF(ISERROR(VLOOKUP($AH79,商品一覧!$B:$D,3,0)),\"\",VLOOKUP($AH79,商品一覧!$B:$D,3,0))","v":""},null,null,"",null,null,null,{"$f":"IFERROR(IF($BD79=\"\",\"\",IF($BD79>=5400,0,VLOOKUP($N79,配送料・支払方法!$B$2:$C$49,2,0))),\"\")","v":""}]
[]
[null,"注文番号",null,null,null,null,null,null,null,null,null,null,null,null,null,null,null,null,"会員ＩＤ",null,null,null,null,null,null,null,null,null,null,null,null,null,null,null,null,"決済方法"]

{"sheet":"受注一覧","index":1,"n_rows":1,"n_cols":42,"rows_kept":1,"cut":false,"hidden":true,"merged":[]}
["受注コード","請求合計金額","決済方法","通信欄","お客様へのご連絡事項","ショップメモ","会員ID","氏名（姓）","氏名（名）","郵便番号","都道府県区分","住所1","住所2","住所3","電話番号（メイン）","お届け先氏名（姓）","お届け先氏名（名）","お届け先郵便番号","お届け先都道府県区分","お届け先住所１","お届け先住所２","お届け先住所３","お届け先電話番号","お届け先別明細番号","お届け希望日","お届け希望時間","詳細指定事項欄","発送日","商品番号","商品名","項目選択肢","購入数量","追加属性項目１","追加属性項目１２","追加属性項目１３","追加属性項目１４","追加属性項目１５","追加属性項目１６","追加属性項目１７","追加属性項目１８","JANコード","配送サービス"]

{"sheet":"商品一覧","index":2,"n_rows":132,"n_cols":6,"rows_kept":132,"cut":false,"hidden":false,"merged":[]}
[]
[null,null,"★ご注文シートに戻る★"]
[]
[null,"商品番号","商品名","商品単価\n（税込8%)",null,"商品紹介ページ"]
[null,"066IM10310000040","今治謹製　紋織タオル　木箱入り　ウォッシュタオル２枚セット　IM1031(今治製)",1080,"https://www.imabari-kinsei.com/fs/imabarikinsei/monori-towel/066IM10310000040",{"$f":"HYPERLINK($E5)","v":"https://www.imabari-kinsei.com/fs/imabarikinsei/monori-towel/066IM10310000040"}]
[null,"066IM15320000024","今治謹製　紋織タオル　木箱入り　フェイスタオル１枚・ウォッシュタオル１枚セット　IM1532(今治製)",1620,"https://www.imabari-kinsei.com/fs/imabarikinsei/monori-towel/066IM15320000024",{"$f":"HYPERLINK($E6)","v":"https://www.imabari-kinsei.com/fs/imabarikinsei/monori-towel/066IM15320000024"}]
[null,"066IM20330000024","今治謹製　紋織タオル　木箱入り　フェイスタオル２枚セット　IM2033(今治製)",2160,"https://www.imabari-kinsei.com/fs/imabarikinsei/monori-towel/066IM20330000024","https://www.imabari-kinsei.com/fs/imabarikinsei/monori-towel/066IM20330000024"]
[null,"066IM25340001124","今治謹製　紋織タオル　木箱入り　バスタオル１枚　IM2534　ベージュ(今治製)",2700,"https://www.imabari-kinsei.com/fs/imabarikinsei/monori-towel/066IM25340001124","https://www.imabari-kinsei.com/fs/imabarikinsei/monori-towel/066IM25340001124"]
[null,"066IM25340004224","今治謹製　紋織タオル　木箱入り　バスタオル１枚　IM2534　ピンク(今治製)",2700,"https://www.imabari-kinsei.com/fs/imabarikinsei/monori-towel/066IM25340004224","https://www.imabari-kinsei.com/fs/imabarikinsei/monori-towel/066IM25340004224"]
[null,"066IM30350000014","今治謹製　紋織タオル　木箱入り　バスタオル１枚・ウォッシュタオル１枚セット　IM3035(今治製)",3240,"https://www.imabari-kinsei.com/fs/imabarikinsei/monori-towel/066IM30350000014","https://www.imabari-kinsei.com/fs/imabarikinsei/monori-towel/066IM30350000014"]
[null,"066IM35380000014","今治謹製　紋織タオル　木箱入り　バスタオル１枚・フェイスタオル１枚セット　IM3538(今治製)",3780,"https://www.imabari-kinsei.com/fs/imabarikinsei/monori-towel/066IM35380000014","https://www.imabari-kinsei.com/fs/imabarikinsei/monori-towel/066IM35380000014"]
[null,"066IM40360000014","今治謹製　紋織タオル　木箱入り　バスタオル１枚・フェイスタオル１枚・ウォッシュタオル１枚セット　IM4036(今治製)",4320,"https://www.imabari-kinsei.com/fs/imabarikinsei/monori-towel/066IM40360000014","https://www.imabari-kinsei.com/fs/imabarikinsei/monori-towel/066IM40360000014"]
[null,"066IM50370000014","今治謹製　紋織タオル　木箱入り　バスタオル２枚セット　IM5037(今治製)",5400,"https://www.imabari-kinsei.com/fs/imabarikinsei/monori-towel/066IM50370000014","https://www.imabari-kinsei.com/fs/imabarikinsei/monori-towel/066IM50370000014"]
[null,"066IM81380000008","今治謹製　紋織タオル　木箱入り　バスタオル２枚フェイスタオル２枚ウォッシュタオル２枚セット　IM8138(今治製)",8640,"https://www.imabari-kinsei.com/fs/imabarikinsei/monori-towel/066IM81380000008","https://www.imabari-kinsei.com/fs/imabarikinsei/monori-towel/066IM81380000008"]
[null,"066IM11039000008","今治謹製　紋織タオル　木箱入り　バスタオル4枚セット　IM11039(今治製)",10800,"https://www.imabari-kinsei.com/fs/imabarikinsei/monori-towel/066IM11039000008","https://www.imabari-kinsei.com/fs/imabarikinsei/monori-towel/066IM11039000008"]
[null,"066IM80380001108","今治謹製　紋織タオル　木箱入り　タオルケット１枚　IM8038　ベージュ(今治製)",8640,"https://www.imabari-kinsei.com/fs/imabarikinsei/monori-towel/066IM80380001108","https://www.imabari-kinsei.com/fs/imabarikinsei/monori-towel/066IM80380001108"]
[null,"066IM80380004208","今治謹製　紋織タオル　木箱入り　タオルケット１枚　IM8038　ピンク(今治製)",8640,"https://www.imabari-kinsei.com/fs/imabarikinsei/monori-towel/066IM80380004208","https://www.imabari-kinsei.com/fs/imabarikinsei/monori-towel/066IM80380004208"]
[null,"066IM15039000004","今治謹製　紋織タオル　木箱入り　タオルケット２枚セット　IM15039(今治製)",16200,"https://www.imabari-kinsei.com/fs/imabarikinsei/monori-towel/066IM15039000004","https://www.imabari-kinsei.com/fs/imabarikinsei/monori-towel/066IM15039000004"]
[null,"066GK20510005130","今治謹製　極上タオル　木箱入り　フェイスタオル１枚　GK2051　グリーン(今治製)",2160,"https://www.imabari-kinsei.com/fs/imabarikinsei/gokujyou-towel/066GK20510005130","https://www.imabari-kinsei.com/fs/imabarikinsei/gokujyou-towel/066GK20510005130"]
[null,"066GK20510006130","今治謹製　極上タオル　木箱入り　フェイスタオル１枚　GK2051　パープル(今治製)",2160,"https://www.imabari-kinsei.com/fs/imabarikinsei/gokujyou-towel/066GK20510006130","https://www.imabari-kinsei.com/fs/imabarikinsei/gokujyou-towel/066GK20510006130"]
[null,"066GK40520000015","今治謹製　極上タオル　木箱入り　フェイスタオル２枚セット　GK4052(今治製)",4320,"https://www.imabari-kinsei.com/fs/imabarikinsei/gokujyou-towel/066GK40520000015","https://www.imabari-kinsei.com/fs/imabarikinsei/gokujyou-towel/066GK40520000015"]
[null,"066GK50530005115","今治謹製　極上タオル　木箱入り　バスタオル１枚　GK5053　グリーン(今治製)",5400,"https://www.imabari-kinsei.com/fs/imabarikinsei/gokujyou-towel/066GK50530005115","https://www.imabari-kinsei.com/fs/imabarikinsei/gokujyou-towel/066GK50530005115"]
[null,"066GK50530006115","今治謹製　極上タオル　木箱入り　バスタオル１枚　GK5053　パープル(今治製)",5400,"https://www.imabari-kinsei.com/fs/imabarikinsei/gokujyou-towel/066GK50530006115","https://www.imabari-kinsei.com/fs/imabarikinsei/gokujyou-towel/066GK50530006115"]
[null,"066GK70540000008","今治謹製　極上タオル　木箱入り　バスタオル１枚・フェイスタオル１枚セット　GK7054(今治製)",7560,"https://www.imabari-kinsei.com/fs/imabarikinsei/gokujyou-towel/066GK70540000008","https://www.imabari-kinsei.com/fs/imabarikinsei/gokujyou-towel/066GK70540000008"]
[null,"066GK80580000008","今治謹製　極上タオル　木箱入り　フェイスタオル4枚セット　GK8058（今治製）",8640,"https://www.imabari-kinsei.com/fs/imabarikinsei/gokujyou-towel/066GK80580000008","https://www.imabari-kinsei.com/fs/imabarikinsei/gokujyou-towel/066GK80580000008"]
[null,"066GK90550000008","今治謹製　極上タオル　木箱入り　バスタオル１枚・フェイスタオル２枚セット　GK9055(今治製)",9720,"https://www.imabari-kinsei.com/fs/imabarikinsei/gokujyou-towel/066GK90550000008","https://www.imabari-kinsei.com/fs/imabarikinsei/gokujyou-towel/066GK90550000008"]
[null,"066GK10056000008","今治謹製　極上タオル　木箱入り　バスタオル２枚セット　GK10056(今治製)",10800,"https://www.imabari-kinsei.com/fs/imabarikinsei/gokujyou-towel/066GK10056000008","https://www.imabari-kinsei.com/fs/imabarikinsei/gokujyou-towel/066GK10056000008"]
[null,"066GK14057000006","今治謹製　極上タオル　木箱入り　バスタオル２枚・フェイスタオル２枚セット　GK14057(今治製)",15120,"https://www.imabari-kinsei.com/fs/imabarikinsei/gokujyou-towel/066GK14057000006","https://www.imabari-kinsei.com/fs/imabarikinsei/gokujyou-towel/066GK14057000006"]
[null,"066GK15059000006","今治謹製　極上タオル　木箱入り　バスタオル3枚セット　GK15059（今治製）",16200,"https://www.imabari-kinsei.com/fs/imabarikinsei/gokujyou-towel/066GK15059000006","https://www.imabari-kinsei.com/fs/imabarikinsei/gokujyou-towel/066GK15059000006"]
[null,"066GK20060000006","今治謹製　極上タオル　木箱入り　バスタオル4枚セット　GK20060（今治製）",21600,"https://www.imabari-kinsei.com/fs/imabarikinsei/gokujyou-towel/066GK20060000006","https://www.imabari-kinsei.com/fs/imabarikinsei/gokujyou-towel/066GK20060000006"]
[null,"066GK41520000115","今治謹製　極上タオル　ホワイトプレミアム　木箱入り　フェイスタオル２枚セット　GK4152 ホワイト(今治製)",4320,"https://www.imabari-kinsei.com/fs/imabarikinsei/gokujyou-towel/066GK41520000115","https://www.imabari-kinsei.com/fs/imabarikinsei/gokujyou-towel/066GK41520000115"]
[null,"066GK51530000115","今治謹製　極上タオル　ホワイトプレミアム　木箱入り　バスタオル１枚　GK5153　ホワイト(今治製)",5400,"https://www.imabari-kinsei.com/fs/imabarikinsei/gokujyou-towel/066GK51530000115","https://www.imabari-kinsei.com/fs/imabarikinsei/gokujyou-towel/066GK51530000115"]
[null,"066GK71540000108","今治謹製　極上タオル　ホワイトプレミアム　木箱入り　バスタオル１枚・フェイスタオル１枚セット　GK7154　ホワイト(今治製)",7560,"https://www.imabari-kinsei.com/fs/imabarikinsei/gokujyou-towel/066GK71540000108","https://www.imabari-kinsei.com/fs/imabarikinsei/gokujyou-towel/066GK71540000108"]
[null,"066GK11056000108","今治謹製　極上タオル　ホワイトプレミアム　木箱入り　バスタオル２枚セット　GK11056　ホワイト(今治製)",10800,"https://www.imabari-kinsei.com/fs/imabarikinsei/gokujyou-towel/066GK11056000108","https://www.imabari-kinsei.com/fs/imabarikinsei/gokujyou-towel/066GK11056000108"]
[null,"066SH24300000024","今治謹製　至福タオル　木箱入り　フェイスタオル２枚セット　SH2430(今治製)",3240,"https://www.imabari-kinsei.com/fs/imabarikinsei/shifuku/066SH24300000024","https://www.imabari-kinsei.com/fs/imabarikinsei/shifuku/066SH24300000024"]
[null,"066SH24350000124","今治謹製　至福タオル　木箱入り　バスタオル１枚　SH2435　ホワイト(今治製)",3780,"https://www.imabari-kinsei.com/fs/imabarikinsei/shifuku/066SH24350000124","https://www.imabari-kinsei.com/fs/imabarikinsei/shifuku/066SH24350000124"]
[null,"066SH24350009324","今治謹製　至福タオル　木箱入り　バスタオル１枚　SH2435　ゴールド(今治製)",3780,"https://www.imabari-kinsei.com/fs/imabarikinsei/shifuku/066SH24350009324","https://www.imabari-kinsei.com/fs/imabarikinsei/shifuku/066SH24350009324"]
[null,"066SH24400000015","今治謹製　至福タオル　木箱入り　フェイスタオル２枚・ウォッシュタオル１枚セット　SH2440(今治製)",4320,"https://www.imabari-kinsei.com/fs/imabarikinsei/shifuku/066SH24400000015","https://www.imabari-kinsei.com/fs/imabarikinsei/shifuku/066SH24400000015"]
[null,"066SH24500000015","今治謹製　至福タオル　木箱入り　バスタオル１枚・フェイスタオル１枚セット　SH2450(今治製)",5400,"https://www.imabari-kinsei.com/fs/imabarikinsei/shifuku/066SH24500000015","https://www.imabari-kinsei.com/fs/imabarikinsei/shifuku/066SH24500000015"]
[null,"066SH24600000015","今治謹製　至福タオル　木箱入り　フェイスタオル4枚セット　SH2460（今治製）",6480,"https://www.imabari-kinsei.com/fs/imabarikinsei/shifuku/066SH24600000015","https://www.imabari-kinsei.com/fs/imabarikinsei/shifuku/066SH24600000015"]
[null,"066SH24700000008","今治謹製　至福タオル　木箱入り　バスタオル２枚セット　SH2470(今治製)",7560,"https://www.imabari-kinsei.com/fs/imabarikinsei/shifuku/066SH24700000008","https://www.imabari-kinsei.com/fs/imabarikinsei/shifuku/066SH24700000008"]
[null,"066SH24100000008","今治謹製　至福タオル　木箱入り　バスタオル２枚・フェイスタオル２枚セット　SH2410(今治製)",10800,"https://www.imabari-kinsei.com/fs/imabarikinsei/shifuku/066SH24100000008","https://www.imabari-kinsei.com/fs/imabarikinsei/shifuku/066SH24100000008"]
[null,"066SH24140000008","今治謹製　至福タオル　木箱入り　バスタオル4枚セット　SH2414（今治製）",15120,"https://www.imabari-kinsei.com/fs/imabarikinsei/shifuku/066SH24140000008","https://www.imabari-kinsei.com/fs/imabarikinsei/shifuku/066SH24140000008"]
[null,"066KG80310000024","和倉温泉　加賀屋おもてな糸　フェイスタオル１枚・ハンドタオル１枚セット　KG8031（今治製）",3240,"https://www.imabari-kinsei.com/fs/imabarikinsei/kagaya/066KG80310000024","https://www.imabari-kinsei.com/fs/imabarikinsei/kagaya/066KG80310000024"]
[null,"066KG80410000024","和倉温泉　加賀屋おもてな糸　フェイスタオル２枚セット　KG8041（今治製）",4320,"https://www.imabari-kinsei.com/fs/imabarikinsei/kagaya/066KG80410000024","https://www.imabari-kinsei.com/fs/imabarikinsei/kagaya/066KG80410000024"]
[null,"066KG80510000016","和倉温泉　加賀屋おもてな糸　バスタオル１枚　KG8051（今治製）",5400,"https://www.imabari-kinsei.com/fs/imabarikinsei/kagaya/066KG80510000016","https://www.imabari-kinsei.com/fs/imabarikinsei/kagaya/066KG80510000016"]
[null,"066KG80610000016","和倉温泉　加賀屋おもてな糸　バスタオル１枚・ハンドタオル１枚セット　KG8061（今治製）",6480,"https://www.imabari-kinsei.com/fs/imabarikinsei/kagaya/066KG80610000016","https://www.imabari-kinsei.com/fs/imabarikinsei/kagaya/066KG80610000016"]
[null,"066KG80810000008","和倉温泉　加賀屋おもてな糸　バスタオル１枚・フェイスタオル１枚・ハンドタオル１枚セット　KG8081（今治製）",8640,"https://www.imabari-kinsei.com/fs/imabarikinsei/kagaya/066KG80810000008","https://www.imabari-kinsei.com/fs/imabarikinsei/kagaya/066KG80810000008"]
[null,"066KG81010000008","和倉温泉　加賀屋おもてな糸　バスタオル２枚セット　KG8101（今治製）",10800,"https://www.imabari-kinsei.com/fs/imabarikinsei/kagaya/066KG81010000008","https://www.imabari-kinsei.com/fs/imabarikinsei/kagaya/066KG81010000008"]
[null,"066SR15390000024","今治謹製　白織タオル　木箱入り　フェイスタオル１枚・ウォッシュタオル１枚セット　SR1539(今治製)",1620,"https://www.imabari-kinsei.com/fs/imabarikinsei/siraori/066SR15390000024","https://www.imabari-kinsei.com/fs/imabarikinsei/siraori/066SR15390000024"]
[null,"066SR20390000024","今治謹製　白織タオル　木箱入り　フェイスタオル２枚　SR2039(今治製)",2160,"https://www.imabari-kinsei.com/fs/imabarikinsei/siraori/066SR20390000024","https://www.imabari-kinsei.com/fs/imabarikinsei/siraori/066SR20390000024"]
[null,"066SR25390000024","今治謹製　白織タオル　木箱入り　バスタオル１枚セット　SR2539(今治製)",2700,"https://www.imabari-kinsei.com/fs/imabarikinsei/siraori/066SR25390000024","https://www.imabari-kinsei.com/fs/imabarikinsei/siraori/066SR25390000024"]
[null,"066SR30390000016","今治謹製　白織タオル　木箱入り　バスタオル１枚・ウォッシュタオル１枚セット　SR3039(今治製)",3240,"https://www.imabari-kinsei.com/fs/imabarikinsei/siraori/066SR30390000016","https://www.imabari-kinsei.com/fs/imabarikinsei/siraori/066SR30390000016"]
[null,"066SR35390000016","今治謹製　白織タオル　木箱入り　バスタオル１枚・フェイスタオル１枚セット　SR3539(今治製)",3780,"https://www.imabari-kinsei.com/fs/imabarikinsei/siraori/066SR35390000016","https://www.imabari-kinsei.com/fs/imabarikinsei/siraori/066SR35390000016"]
[null,"066SR40390000016","今治謹製　白織タオル　木箱入り　バスタオル１枚・フェイスタオル１枚・ウォッシュタオル１枚セット　SR4039(今治製)",4320,"https://www.imabari-kinsei.com/fs/imabarikinsei/siraori/066SR40390000016","https://www.imabari-kinsei.com/fs/imabarikinsei/siraori/066SR40390000016"]
[null,"066SR50390000016","今治謹製　白織タオル　木箱入り　バスタオル２枚セット　SR5039(今治製)",5400,"https://www.imabari-kinsei.com/fs/imabarikinsei/siraori/066SR50390000016","https://www.imabari-kinsei.com/fs/imabarikinsei/siraori/066SR50390000016"]
[null,"066SR51390000016","今治謹製　白織タオル　木箱入り　フェイスタオル5枚セット　SR5139（今治製）",5400,"https://www.imabari-kinsei.com/fs/imabarikinsei/siraori/066SR51390000016","https://www.imabari-kinsei.com/fs/imabarikinsei/siraori/066SR51390000016"]
[null,"066SR70390000008","今治謹製　白織タオル　木箱入り　バスタオル２枚・フェイスタオル２枚セット　SR7039(今治製)",7560,"https://www.imabari-kinsei.com/fs/imabarikinsei/siraori/066SR70390000008","https://www.imabari-kinsei.com/fs/imabarikinsei/siraori/066SR70390000008"]
[null,"066SR90390000008","今治謹製　白織タオル　木箱入り　バスタオル２枚・フェイスタオル４枚セット　SR9039(今治製)",9720,"https://www.imabari-kinsei.com/fs/imabarikinsei/siraori/066SR90390000008","https://www.imabari-kinsei.com/fs/imabarikinsei/siraori/066SR90390000008"]
[null,"066SR11039000008","今治謹製　白織タオル　木箱入り　バスタオル4枚セット　SR11039（今治製）",10800,"https://www.imabari-kinsei.com/fs/imabarikinsei/siraori/066SR11039000008","https://www.imabari-kinsei.com/fs/imabarikinsei/siraori/066SR11039000008"]
[null,"066IOG2925000024","今治謹製オーガニックタオル　オーガニックパイル　フェイスタオル１枚・ハンドタオル１枚セット　IOG2925（今治製）",2700,"https://www.imabari-kinsei.com/fs/imabarikinsei/organic/066IOG2925000024","https://www.imabari-kinsei.com/fs/imabarikinsei/organic/066IOG2925000024"]
[null,"066IOG2930000024","今治謹製オーガニックタオル オーガニックパイル　フェイスタオル２枚　IOG2930（今治製）",3240,"https://www.imabari-kinsei.com/fs/imabarikinsei/organic/066IOG2930000024","https://www.imabari-kinsei.com/fs/imabarikinsei/organic/066IOG2930000024"]
[null,"066IOG2935000124","今治謹製オーガニックタオル　オーガニックパイル　バスタオル１枚　IOG2935　ホワイト（今治製）",3780,"https://www.imabari-kinsei.com/fs/imabarikinsei/organic/066IOG2935000124","https://www.imabari-kinsei.com/fs/imabarikinsei/organic/066IOG2935000124"]
[null,"066IOG2935001124","今治謹製オーガニックタオル　 オーガニックパイル　バスタオル１枚　IOG2935　ベージュ（今治製）",3780,"https://www.imabari-kinsei.com/fs/imabarikinsei/organic/066IOG2935001124","https://www.imabari-kinsei.com/fs/imabarikinsei/organic/066IOG2935001124"]
[null,"066IOG2940000015","今治謹製オーガニックタオル　オーガニックパイル　フェイスタオル２枚・ハンドタオル１枚　IOG2940（今治製）",4320,"https://www.imabari-kinsei.com/fs/imabarikinsei/organic/066IOG2940000015","https://www.imabari-kinsei.com/fs/imabarikinsei/organic/066IOG2940000015"]
[null,"066IOG2950000015","今治謹製オーガニックタオル　 オーガニックパイル　バスタオル１枚・フェイスタオル１枚　IOG2950（今治製）",5400,"https://www.imabari-kinsei.com/fs/imabarikinsei/organic/066IOG2950000015","https://www.imabari-kinsei.com/fs/imabarikinsei/organic/066IOG2950000015"]
[null,"066IOG2970000008","今治謹製オーガニックタオル　 オーガニックパイル　バスタオル２枚　IOG2970（今治製）",7560,"https://www.imabari-kinsei.com/fs/imabarikinsei/organic/066IOG2970000008","https://www.imabari-kinsei.com/fs/imabarikinsei/organic/066IOG2970000008"]
[null,"066IOG2980000015","今治謹製オーガニックタオル　 オーガニックパイル　バスポンチョ１枚　IOG2980（今治製）",8640,"https://www.imabari-kinsei.com/fs/imabarikinsei/organic/066IOG2980000015","https://www.imabari-kinsei.com/fs/imabarikinsei/organic/066IOG2980000015"]
[null,"066IOG2910000008","今治謹製オーガニックタオル　 オーガニックパイル　バスタオル２枚・フェイスタオル２枚　IOG2910（今治製）",10800,"https://www.imabari-kinsei.com/fs/imabarikinsei/organic/066IOG2910000008","https://www.imabari-kinsei.com/fs/imabarikinsei/organic/066IOG2910000008"]
[null,"066IK30250001324","今治謹製　古色ゆかりいろ　フェイスタオル１枚・ハンドタオル１枚セット　IK3025　(BR） -今治製-",2700,"https://www.imabari-kinsei.com/fs/imabarikinsei/koshiki/066IK30250001324",{"$f":"HYPERLINK($E70)","v":"https://www.imabari-kinsei.com/fs/imabarikinsei/koshiki/066IK30250001324"}]
[null,"066IK30250004124","今治謹製　古色ゆかりいろ　フェイスタオル１枚・ハンドタオル１枚セット　IK3025　(RD） -今治製-",2700,"https://www.imabari-kinsei.com/fs/imabarikinsei/koshiki/066IK30250004124","https://www.imabari-kinsei.com/fs/imabarikinsei/koshiki/066IK30250004124"]
[null,"066IK30300004224","今治謹製　古色ゆかりいろ　フェイスタオル２枚セット　IK3030　(PI） -今治製-",3240,"https://www.imabari-kinsei.com/fs/imabarikinsei/koshiki/066IK30300004224","https://www.imabari-kinsei.com/fs/imabarikinsei/koshiki/066IK30300004224"]
[null,"066IK30300007424","今治謹製　古色ゆかりいろ　フェイスタオル２枚セット　IK3030　(NV） -今治製-",3240,"https://www.imabari-kinsei.com/fs/imabarikinsei/koshiki/066IK30300007424","https://www.imabari-kinsei.com/fs/imabarikinsei/koshiki/066IK30300007424"]
[null,"066IK30350000124","今治謹製　古色ゆかりいろ　バスタオル１枚　IK3035　（WH） -今治製-",3780,"https://www.imabari-kinsei.com/fs/imabarikinsei/koshiki/066IK30350000124","https://www.imabari-kinsei.com/fs/imabarikinsei/koshiki/066IK30350000124"]
[null,"066IK30350007324","今治謹製　古色ゆかりいろ　バスタオル１枚　IK3035　（BL） -今治製-",3780,"https://www.imabari-kinsei.com/fs/imabarikinsei/koshiki/066IK30350007324","https://www.imabari-kinsei.com/fs/imabarikinsei/koshiki/066IK30350007324"]
[null,"066IK30500001315","今治謹製　古色ゆかりいろ　バスタオル１枚・フェイスタオル１枚　IK3050　（BR） -今治製-",5400,"https://www.imabari-kinsei.com/fs/imabarikinsei/koshiki/066IK30500001315","https://www.imabari-kinsei.com/fs/imabarikinsei/koshiki/066IK30500001315"]
[null,"066IK30500007415","今治謹製　古色ゆかりいろ　バスタオル１枚・フェイスタオル１枚　IK3050　（NV） -今治製-",5400,"https://www.imabari-kinsei.com/fs/imabarikinsei/koshiki/066IK30500007415","https://www.imabari-kinsei.com/fs/imabarikinsei/koshiki/066IK30500007415"]
[null,"066IK30700000008","今治謹製　古色ゆかりいろ　バスタオル１枚・フェイスタオル２枚・ハンドタオル１枚セット　IK3070　 -今治製-",7560,"https://www.imabari-kinsei.com/fs/imabarikinsei/koshiki/066IK30700000008","https://www.imabari-kinsei.com/fs/imabarikinsei/koshiki/066IK30700000008"]
[null,"066IK30100000008","今治謹製　古色ゆかりいろ　バスタオル２枚・フェイスタオル２枚・ハンドタオル１枚セット　IK3010   -今治製-",10800,"https://www.imabari-kinsei.com/fs/imabarikinsei/koshiki/066IK30100000008","https://www.imabari-kinsei.com/fs/imabarikinsei/koshiki/066IK30100000008"]
[null,"066IMS1541000032","今治謹製　さくら紋織　ウォッシュタオル２枚セット　IMS1541（今治製）",1620,"https://www.imabari-kinsei.com/fs/imabarikinsei/sakura/066IMS1541000032","https://www.imabari-kinsei.com/fs/imabarikinsei/sakura/066IMS1541000032"]
[null,"066IMS2041000032","今治謹製　さくら紋織　フェイスタオル１枚・ウォッシュタオル１枚セット　IMS2041（今治製）",2160,"https://www.imabari-kinsei.com/fs/imabarikinsei/sakura/066IMS2041000032","https://www.imabari-kinsei.com/fs/imabarikinsei/sakura/066IMS2041000032"]
[null,"066IMS2541000024","今治謹製　さくら紋織　フェイスタオル２枚セット　IMS2541（今治製）",2700,"https://www.imabari-kinsei.com/fs/imabarikinsei/sakura/066IMS2541000024","https://www.imabari-kinsei.com/fs/imabarikinsei/sakura/066IMS2541000024"]
[null,"066IMS3041000024","今治謹製　さくら紋織　フェイスタオル２枚・ウォッシュタオル１枚セット　IMS3041（今治製）",3240,"https://www.imabari-kinsei.com/fs/imabarikinsei/sakura/066IMS3041000024","https://www.imabari-kinsei.com/fs/imabarikinsei/sakura/066IMS3041000024"]
[null,"066IMS3541000016","今治謹製　さくら紋織　バスタオル１枚・ウォッシュタオル１枚セット　IMS3541（今治製）",3780,"https://www.imabari-kinsei.com/fs/imabarikinsei/sakura/066IMS3541000016","https://www.imabari-kinsei.com/fs/imabarikinsei/sakura/066IMS3541000016"]
[null,"066IMS4041000016","今治謹製　さくら紋織　バスタオル１枚・フェイスタオル１枚セット　IMS4041（今治製）",4320,"https://www.imabari-kinsei.com/fs/imabarikinsei/sakura/066IMS4041000016","https://www.imabari-kinsei.com/fs/imabarikinsei/sakura/066IMS4041000016"]
[null,"066IMS5041000016","今治謹製　さくら紋織　バスタオル１枚・フェイスタオル２枚セット　IMS5041（今治製）",5400,"https://www.imabari-kinsei.com/fs/imabarikinsei/sakura/066IMS5041000016","https://www.imabari-kinsei.com/fs/imabarikinsei/sakura/066IMS5041000016"]
[null,"066IMS6041000008","今治謹製　さくら紋織　バスタオル２枚セット　IMS6041（今治製）",6480,"https://www.imabari-kinsei.com/fs/imabarikinsei/sakura/066IMS6041000008","https://www.imabari-kinsei.com/fs/imabarikinsei/sakura/066IMS6041000008"]
[null,"066IMS8041000008","今治謹製　さくら紋織　バスタオル２枚・フェイスタオル２枚セット　IM8041（今治製）",8640,"https://www.imabari-kinsei.com/fs/imabarikinsei/sakura/066IMS8041000008","https://www.imabari-kinsei.com/fs/imabarikinsei/sakura/066IMS8041000008"]
[null,"066BG25270001124","今治謹製　ボタニカルガーゼ　フェイスタオル1枚・ハンドタオル1枚セット　BG2527　ベージュ　（今治産）",2700,"https://www.imabari-kinsei.com/fs/imabarikinsei/botanical-gauze/066BG25270001124","https://www.imabari-kinsei.com/fs/imabarikinsei/botanical-gauze/066BG25270001124"]
[null,"066BG25270004224","今治謹製　ボタニカルガーゼ　フェイスタオル1枚・ハンドタオル1枚セット　BG2527　ピンク　（今治産）",2700,"https://www.imabari-kinsei.com/fs/imabarikinsei/botanical-gauze/066BG25270004224","https://www.imabari-kinsei.com/fs/imabarikinsei/botanical-gauze/066BG25270004224"]
[null,"066BG30270001124","今治謹製　ボタニカルガーゼ　フェイスタオル2枚セット　BG3027　ベージュ　（今治産）",3240,"https://www.imabari-kinsei.com/fs/imabarikinsei/botanical-gauze/066BG30270001124","https://www.imabari-kinsei.com/fs/imabarikinsei/botanical-gauze/066BG30270001124"]
[null,"066BG30270004224","今治謹製　ボタニカルガーゼ　フェイスタオル2枚セット　BG3027　ピンク　（今治産）",3240,"https://www.imabari-kinsei.com/fs/imabarikinsei/botanical-gauze/066BG30270004224","https://www.imabari-kinsei.com/fs/imabarikinsei/botanical-gauze/066BG30270004224"]
[null,"066BG31270001124","今治謹製　ボタニカルガーゼ　ギャルソンエプロン BG3127　ベージュ（今治産）",3240,"https://www.imabari-kinsei.com/fs/imabarikinsei/botanical-gauze/066BG31270001124","https://www.imabari-kinsei.com/fs/imabarikinsei/botanical-gauze/066BG31270001124"]
[null,"066BG31270004224","今治謹製　ボタニカルガーゼ　ギャルソンエプロン BG3127　ピンク（今治産）",3240,"https://www.imabari-kinsei.com/fs/imabarikinsei/botanical-gauze/066BG31270004224","https://www.imabari-kinsei.com/fs/imabarikinsei/botanical-gauze/066BG31270004224"]
[null,"066BG40270001124","今治謹製　ボタニカルガーゼ　フェイスタオル1枚・ハンドタオル1枚・スタイセット　BG4027　ベージュ　（今治産）",4320,"https://www.imabari-kinsei.com/fs/imabarikinsei/botanical-gauze/066BG40270001124","https://www.imabari-kinsei.com/fs/imabarikinsei/botanical-gauze/066BG40270001124"]
[null,"066BG40270004224","今治謹製　ボタニカルガーゼ　フェイスタオル1枚・ハンドタオル1枚・スタイセット　BG4027　ピンク　（今治産）",4320,"https://www.imabari-kinsei.com/fs/imabarikinsei/botanical-gauze/066BG40270004224","https://www.imabari-kinsei.com/fs/imabarikinsei/botanical-gauze/066BG40270004224"]
[null,"066BG50270001115","今治謹製　ボタニカルガーゼ　バスタオル1枚・フェイスタオル1枚セット　BG5027　ベージュ　（今治産）",5400,"https://www.imabari-kinsei.com/fs/imabarikinsei/botanical-gauze/066BG50270001115","https://www.imabari-kinsei.com/fs/imabarikinsei/botanical-gauze/066BG50270001115"]
[null,"066BG50270004215","今治謹製　ボタニカルガーゼ　バスタオル1枚・フェイスタオル1枚セット　BG5027　ピンク　（今治産）",5400,"https://www.imabari-kinsei.com/fs/imabarikinsei/botanical-gauze/066BG50270004215","https://www.imabari-kinsei.com/fs/imabarikinsei/botanical-gauze/066BG50270004215"]
[null,"066BG80270001115","今治謹製　ボタニカルガーゼ　フェイスタオル1枚・ポンチョ1枚・まくら1個・スタイ1枚セット　BG8027　ベージュ　（今治産）",8640,"https://www.imabari-kinsei.com/fs/imabarikinsei/botanical-gauze/066BG80270001115","https://www.imabari-kinsei.com/fs/imabarikinsei/botanical-gauze/066BG80270001115"]
[null,"066BG80270004215","今治謹製　ボタニカルガーゼ　フェイスタオル1枚・ポンチョ1枚・まくら1個・スタイ1枚セット　BG8027　ピンク　（今治産）",8640,"https://www.imabari-kinsei.com/fs/imabarikinsei/botanical-gauze/066BG80270004215","https://www.imabari-kinsei.com/fs/imabarikinsei/botanical-gauze/066BG80270004215"]
[null,"066BG90270001115","今治謹製　ボタニカルガーゼ　フード付きバスポンチョ1枚・ハンドタオル1枚・ポンチョ1枚セット　BG9027　ベージュ　（今治産）",9720,"https://www.imabari-kinsei.com/fs/imabarikinsei/botanical-gauze/066BG90270001115","https://www.imabari-kinsei.com/fs/imabarikinsei/botanical-gauze/066BG90270001115"]
[null,"066BG90270004215","今治謹製　ボタニカルガーゼ　フード付きバスポンチョ1枚・ハンドタオル1枚・ポンチョ1枚セット　BG9027　ピンク　（今治産）",9720,"https://www.imabari-kinsei.com/fs/imabarikinsei/botanical-gauze/066BG90270004215","https://www.imabari-kinsei.com/fs/imabarikinsei/botanical-gauze/066BG90270004215"]
[null,"066BG10270001108","今治謹製　ボタニカルガーゼ　バスタオル1枚・フェイスタオル1枚・ハンドタオル1枚・ポンチョ1枚・まくら1個セット　BG1027　ベージュ　（今治産）",10800,"https://www.imabari-kinsei.com/fs/imabarikinsei/botanical-gauze/066BG10270001108","https://www.imabari-kinsei.com/fs/imabarikinsei/botanical-gauze/066BG10270001108"]
[null,"066BG10270004208","今治謹製　ボタニカルガーゼ　バスタオル1枚・フェイスタオル1枚・ハンドタオル1枚・ポンチョ1枚・まくら1個セット　BG1027　ピンク　（今治産）",10800,"https://www.imabari-kinsei.com/fs/imabarikinsei/botanical-gauze/066BG10270004208","https://www.imabari-kinsei.com/fs/imabarikinsei/botanical-gauze/066BG10270004208"]
[null,"066HK10170000348","今治謹製　千歳はんかち　木箱入り　タオルハンカチ1枚　HK1017　アイボリー　（今治産）",1080,"https://www.imabari-kinsei.com/fs/imabarikinsei/chitose-handkerchief/066HK10170000348","https://www.imabari-kinsei.com/fs/imabarikinsei/chitose-handkerchief/066HK10170000348"]
[null,"066HK10170002248","今治謹製　千歳はんかち　木箱入り　タオルハンカチ1枚　HK1017　イエロー　（今治産）",1080,"https://www.imabari-kinsei.com/fs/imabarikinsei/chitose-handkerchief/066HK10170002248","https://www.imabari-kinsei.com/fs/imabarikinsei/chitose-handkerchief/066HK10170002248"]
[null,"066HK10170004248","今治謹製　千歳はんかち　木箱入り　タオルハンカチ1枚　HK1017　ピンク　（今治産）",1080,"https://www.imabari-kinsei.com/fs/imabarikinsei/chitose-handkerchief/066HK10170004248","https://www.imabari-kinsei.com/fs/imabarikinsei/chitose-handkerchief/066HK10170004248"]
[null,"066HK10170007348","今治謹製　千歳はんかち　木箱入り　タオルハンカチ1枚　HK1017　ブルー　（今治産）",1080,"https://www.imabari-kinsei.com/fs/imabarikinsei/chitose-handkerchief/066HK10170007348","https://www.imabari-kinsei.com/fs/imabarikinsei/chitose-handkerchief/066HK10170007348"]
[null,"066HK10170007448","今治謹製　千歳はんかち　木箱入り　タオルハンカチ1枚　HK1017　ネイビー　（今治産）",1080,"https://www.imabari-kinsei.com/fs/imabarikinsei/chitose-handkerchief/066HK10170007448","https://www.imabari-kinsei.com/fs/imabarikinsei/chitose-handkerchief/066HK10170007448"]
[null,"066HK20170000324","今治謹製　千歳はんかち　木箱入り　タオルハンカチ2枚セット　HK2017　アイボリー　（今治産）",2160,"https://www.imabari-kinsei.com/fs/imabarikinsei/chitose-handkerchief/066HK20170000324","https://www.imabari-kinsei.com/fs/imabarikinsei/chitose-handkerchief/066HK20170000324"]
[null,"066HK20170004224","今治謹製　千歳はんかち　木箱入り　タオルハンカチ2枚セット　HK2017　ピンク　（今治産）",2160,"https://www.imabari-kinsei.com/fs/imabarikinsei/chitose-handkerchief/066HK20170004224","https://www.imabari-kinsei.com/fs/imabarikinsei/chitose-handkerchief/066HK20170004224"]
[null,"066HK20170007324","今治謹製　千歳はんかち　木箱入り　タオルハンカチ2枚セット　HK2017　ブルー　（今治産）",2160,"https://www.imabari-kinsei.com/fs/imabarikinsei/chitose-handkerchief/066HK20170007324","https://www.imabari-kinsei.com/fs/imabarikinsei/chitose-handkerchief/066HK20170007324"]
[null,"066HK30170004224","今治謹製　千歳はんかち　木箱入り　タオルハンカチ3枚セット　HK3017　ピンク　（今治産）",3240,"https://www.imabari-kinsei.com/fs/imabarikinsei/chitose-handkerchief/066HK30170004224","https://www.imabari-kinsei.com/fs/imabarikinsei/chitose-handkerchief/066HK30170004224"]
[null,"066HK30170007324","今治謹製　千歳はんかち　木箱入り　タオルハンカチ3枚セット　HK3017　ブルー　（今治産）",3240,"https://www.imabari-kinsei.com/fs/imabarikinsei/chitose-handkerchief/066HK30170007324","https://www.imabari-kinsei.com/fs/imabarikinsei/chitose-handkerchief/066HK30170007324"]
[null,"066SH34300000020","今治謹製　至福タオル（梅染め）　木箱入り　フェイスタオル2枚セット　SH3430　（今治産）",3240,"https://www.imabari-kinsei.com/fs/imabarikinsei/shifuku-towel-ume/066SH34300000020",{"$f":"HYPERLINK($E115)","v":"https://www.imabari-kinsei.com/fs/imabarikinsei/shifuku-towel-ume/066SH34300000020"}]
[null,"066SH34350000120","今治謹製　至福タオル（梅染め）　木箱入り　バスタオル1枚　SH3435　ホワイト（今治産）",3780,"https://www.imabari-kinsei.com/fs/imabarikinsei/shifuku-towel-ume/066SH34350000120",{"$f":"HYPERLINK($E116)","v":"https://www.imabari-kinsei.com/fs/imabarikinsei/shifuku-towel-ume/066SH34350000120"}]
[null,"066SH34350004220","今治謹製　至福タオル（梅染め）　木箱入り　バスタオル1枚　SH3435　ピンク（今治産）",3780,"https://www.imabari-kinsei.com/fs/imabarikinsei/shifuku-towel-ume/066SH34350004220",{"$f":"HYPERLINK($E117)","v":"https://www.imabari-kinsei.com/fs/imabarikinsei/shifuku-towel-ume/066SH34350004220"}]
[null,"066SH34400000012","今治謹製　至福タオル（梅染め）　木箱入り　フェイスタオル２枚・ウォッシュタオル１枚セット　SH3440　（今治産）",4320,"https://www.imabari-kinsei.com/fs/imabarikinsei/shifuku-towel-ume/066SH34400000012",{"$f":"HYPERLINK($E118)","v":"https://www.imabari-kinsei.com/fs/imabarikinsei/shifuku-towel-ume/066SH34400000012"}]
[null,"066SH34500000012","今治謹製　至福タオル（梅染め）　木箱入り　バスタオル1枚・フェイスタオル1枚セット　SH3450　（今治産）",5400,"https://www.imabari-kinsei.com/fs/imabarikinsei/shifuku-towel-ume/066SH34500000012",{"$f":"HYPERLINK($E119)","v":"https://www.imabari-kinsei.com/fs/imabarikinsei/shifuku-towel-ume/066SH34500000012"}]
[null,"066SH34700000008","今治謹製　至福タオル（梅染め）　木箱入り　バスタオル2枚セット　SH3470　（今治産）",7560,"https://www.imabari-kinsei.com/fs/imabarikinsei/shifuku-towel-ume/066SH34700000008",{"$f":"HYPERLINK($E120)","v":"https://www.imabari-kinsei.com/fs/imabarikinsei/shifuku-towel-ume/066SH34700000008"}]
[null,"066SH34100000008","今治謹製　至福タオル（梅染め）　木箱入り　バスタオル2枚・フェイスタオル2枚セット　SH3410　（今治産）",10800,"https://www.imabari-kinsei.com/fs/imabarikinsei/shifuku-towel-ume/066SH34100000008",{"$f":"HYPERLINK($E121)","v":"https://www.imabari-kinsei.com/fs/imabarikinsei/shifuku-towel-ume/066SH34100000008"}]
[null,"066KK79020001124","今治謹製　雲母唐長（KIRA KARACHO)タオル　木箱入り　ロングフェイスタオル1枚　KK79020　ベージュ(天平大雲）　（今治製）",2160,"https://www.imabari-kinsei.com/fs/imabarikinsei/kirakaracho/066KK79020001124","https://www.imabari-kinsei.com/fs/imabarikinsei/kirakaracho/066KK79020001124"]
[null,"066KK79020004224","今治謹製　雲母唐長（KIRA KARACHO)タオル　木箱入り　ロングフェイスタオル1枚　KK79020 ピンク(南蛮七宝）　（今治製）",2160,"https://www.imabari-kinsei.com/fs/imabarikinsei/kirakaracho/066KK79020004224","https://www.imabari-kinsei.com/fs/imabarikinsei/kirakaracho/066KK79020004224"]
[null,"066KK79030001124","今治謹製　雲母唐長（KIRA KARACHO)タオル　木箱入り　コンパクトバスタオル1枚　KK79030　ベージュ(天平大雲）　（今治製）",3240,"https://www.imabari-kinsei.com/fs/imabarikinsei/kirakaracho/066KK79030001124","https://www.imabari-kinsei.com/fs/imabarikinsei/kirakaracho/066KK79030001124"]
[null,"066KK79030004224","今治謹製　雲母唐長（KIRA KARACHO)タオル　木箱入り　コンパクトバスタオル1枚　KK79030　ピンク(南蛮七宝）　（今治製）",3240,"https://www.imabari-kinsei.com/fs/imabarikinsei/kirakaracho/066KK79030004224","https://www.imabari-kinsei.com/fs/imabarikinsei/kirakaracho/066KK79030004224"]
[null,"066KK79040000016","今治謹製　雲母唐長（KIRA KARACHO)タオル　木箱入り　ロングフェイスタオル２枚　KK79040　（今治製）",4320,"https://www.imabari-kinsei.com/fs/imabarikinsei/kirakaracho/066KK79040000016","https://www.imabari-kinsei.com/fs/imabarikinsei/kirakaracho/066KK79040000016"]
[null,"066KK79050001116","今治謹製　雲母唐長（KIRA KARACHO)タオル　木箱入り　ロングフェイスタオル１枚・コンパクトバスタオル1枚　KK79050　ベージュ（天平大雲）　（今治製）",5400,"https://www.imabari-kinsei.com/fs/imabarikinsei/kirakaracho/066KK79050001116","https://www.imabari-kinsei.com/fs/imabarikinsei/kirakaracho/066KK79050001116"]
[null,"066KK79050004216","今治謹製　雲母唐長（KIRA KARACHO)タオル　木箱入り　ロングフェイスタオル１枚・コンパクトバスタオル1枚　KK79050　ピンク（南蛮七宝）　（今治製）",5400,"https://www.imabari-kinsei.com/fs/imabarikinsei/kirakaracho/066KK79050004216","https://www.imabari-kinsei.com/fs/imabarikinsei/kirakaracho/066KK79050004216"]
[null,"066KK79070000008","今治謹製　雲母唐長（KIRA KARACHO)タオル　木箱入り　ロングフェイスタオル２枚・コンパクトバスタオル1枚　KK79070　（今治製）",7560.0000000000009,"https://www.imabari-kinsei.com/fs/imabarikinsei/kirakaracho/066KK79070000008","https://www.imabari-kinsei.com/fs/imabarikinsei/kirakaracho/066KK79070000008"]
[null,"066KK79100000008","今治謹製　雲母唐長（KIRA KARACHO)タオル　木箱入り　ロングフェイスタオル２枚・コンパクトバスタオル２枚　KK79100　（今治製）",10800,"https://www.imabari-kinsei.com/fs/imabarikinsei/kirakaracho/066KK79100000008","https://www.imabari-kinsei.com/fs/imabarikinsei/kirakaracho/066KK79100000008"]
[null,"066KK79150000006","今治謹製　雲母唐長（KIRA KARACHO)タオル　木箱入り　ロングフェイスタオル3枚・コンパクトバスタオル3枚　KK79150　（今治製）",16200.000000000002,"https://www.imabari-kinsei.com/fs/imabarikinsei/kirakaracho/066KK79150000006","https://www.imabari-kinsei.com/fs/imabarikinsei/kirakaracho/066KK79150000006"]
[null,"066KK79200000006","今治謹製　雲母唐長（KIRA KARACHO)タオル　木箱入り　ロングフェイスタオル4枚・コンパクトバスタオル4枚　KK79200　（今治製）",21600,"https://www.imabari-kinsei.com/fs/imabarikinsei/kirakaracho/066KK79200000006","https://www.imabari-kinsei.com/fs/imabarikinsei/kirakaracho/066KK79200000006"]

{"sheet":"のし・包装紙","index":3,"n_rows":16,"n_cols":6,"rows_kept":16,"cut":false,"hidden":true,"merged":[]}
[]
[null,"のしの有無",null,"のしの種類",null,"包装紙"]
[null,"のし不要",null,"1番 結婚引き出物/結婚祝い用  「寿」",null,"不要"]
[null,"リボンシール（のし掛けできません）",null,"2番 結婚内祝（結婚祝いのお返し）用  「内祝」",null,"A 今治謹製公式（市松） <慶弔全般>"]
[null,"内のし",null,"3番 出産祝い用  「御祝」",null,"B 今治謹製公式（市松ピンク） <慶事向け>"]
[null,"外のし",null,"4番 出産内祝（出産祝いのお返し）用  「内祝」",null,"C 雲流（ピンク） <慶事向け>"]
[null,null,null,"5番 慶事用無地のし 【結び切り】 記載できません",null,"D カラフルくまさん <慶事向け>"]
[null,null,null,"6番 慶事用無地のし 【蝶結び】 記載できません",null,"E ピンクローズ <慶事向け>"]
[null,null,null,"7番 その他慶事用表書オーダーメイド 【結び切り】 ",null,"F 雲流（ブルー） <慶弔全般>"]
[null,null,null,"8番 その他慶事用表書オーダーメイド 【蝶結び】 ",null,"G 無地（ブラウン） <慶弔全般>"]
[null,null,null,"9番 香典返し用 【水引：黒色】 「志」",null,"H ストライプ（ブルー） <慶事向け>"]
[null,null,null,"10番 香典返し用 【水引：黄白】 「志」"]
[null,null,null,"11番 弔事用無地のし 【水引：黒色】 記載できません"]
[null,null,null,"12番 弔事用無地のし 【水引：黄白】 記載できません"]
[null,null,null,"13番 その他弔事用表書オーダーメイド 【水引：黒色】 "]
[null,null,null,"14番 その他弔事用表書オーダーメイド 【水引：黄白】 "]

{"sheet":"配送料・支払方法","index":4,"n_rows":49,"n_cols":9,"rows_kept":49,"cut":false,"hidden":true,"merged":[]}
[]
[null,"都道府県","配送料",null,"月","月","日",null,"支払方法"]
[null,"北海道",1296,null,"2014","01","01",null,"クレジットカード"]
[null,"青森県",756,null,"2015","02","02",null,"銀行振込"]
[null,"秋田県",756,null,"2016","03","03"]
[null,"岩手県",756,null,"2017","04","04"]
[null,"山形県",756,null,"2018","05","05"]
[null,"宮城県",756,null,"2019","06","06"]
[null,"福島県",756,null,null,"07","07"]
[null,"栃木県",756,null,null,"08","08"]
[null,"群馬県",756,null,null,"09","09"]
[null,"茨城県",756,null,null,"10","10"]
[null,"埼玉県",756,null,null,"11","11"]
[null,"千葉県",756,null,null,"12","12"]
[null,"東京都",756,null,null,null,"13"]
[null,"神奈川県",756,null,null,null,"14"]
[null,"新潟県",756,null,null,null,"15"]
[null,"富山県",756,null,null,null,"16"]
[null,"石川県",756,null,null,null,"17"]
[null,"福井県",756,null,null,null,"18"]
[null,"長野県",756,null,null,null,"19"]
[null,"山梨県",756,null,null,null,"20"]
[null,"静岡県",756,null,null,null,"21"]
[null,"愛知県",756,null,null,null,"22"]
[null,"岐阜県",756,null,null,null,"23"]
[null,"三重県",756,null,null,null,"24"]
[null,"滋賀県",756,null,null,null,"25"]
[null,"京都府",756,null,null,null,"26"]
[null,"大阪府",756,null,null,null,"27"]
[null,"奈良県",756,null,null,null,"28"]
[null,"和歌山県",756,null,null,null,"29"]
[null,"兵庫県",756,null,null,null,"30"]
[null,"鳥取県",756,null,null,null,"31"]
[null,"岡山県",756]
[null,"広島県",756]
[null,"島根県",756]
[null,"山口県",756]
[null,"香川県",756]
[null,"徳島県",756]
[null,"高知県",756]
[null,"愛媛県",756]
[null,"福岡県",756]
[null,"長崎県",756]
[null,"佐賀県",756]
[null,"大分県",756]
[null,"熊本県",756]
[null,"宮崎県",756]
[null,"鹿児島県",756]
[null,"沖縄県",1296]